Organisation Name (A),Department (B),Service Cat Label (C ),Purpose of Spend (D),Expenditure CIPFA Sub Group (E ),Supplier (F),Supplier Reference (G),Pay Date (H),Transaction Number (I),Net Amount (J),Grant to VCSE? (K),Charity Number (L),Card Transaction (M),Irrecoverable VAT (N)
Pendle Borough Council,Parks & Recreation Services,Transport Related Expense,Tprt : Repairs : General,3105,BALMERS GM LIMITED,A0000198,19/01/2023,PCO0331041,189.77,N,,N,N
Pendle Borough Council,Engineering & Special Projects,Supplies and Services,Other Expenses,4705,BROXAP LIMITED,A0000236,26/01/2023,HED0331210,955.95,N,,N,N
Pendle Borough Council,Parks & Recreation Services,Transport Related Expense,Hire of Plant,3502,BOC GASES LTD,A0000386,12/01/2023,PCO0330856,24.45,N,,N,N
Pendle Borough Council,Parks & Recreation Services,Premises Related Expense,Grounds : R & M : Day to Day : Routine,2101,BARROWFORD SAFE & LOCK SERV LT,A0000458,12/01/2023,PCO0330861,13.32,N,,N,N
Pendle Borough Council,Parks & Recreation Services,Premises Related Expense,Grounds : R & M : Day to Day : Routine,2101,BARROWFORD SAFE & LOCK SERV LT,A0000458,12/01/2023,PCO0330861,6.66,N,,N,N
Pendle Borough Council,Engineering & Special Projects,Supplies and Services,Other Expenses,4705,BARNOLDSWICK TOWN COUNCIL,A0000467,05/01/2023,HED0330757,5000,N,,N,N
Pendle Borough Council,Engineering & Special Projects,Supplies and Services,Other Expenses,4705,BARNOLDSWICK TOWN COUNCIL,A0000467,05/01/2023,HED0330755,5790,N,,N,N
Pendle Borough Council,Engineering & Special Projects,Supplies and Services,Other Expenses,4705,BARNOLDSWICK TOWN COUNCIL,A0000467,05/01/2023,HED0330755,210,N,,N,N
Pendle Borough Council,Engineering & Special Projects,Supplies and Services,Other Expenses,4705,BARNOLDSWICK TOWN COUNCIL,A0000467,05/01/2023,HED0330756,6000,N,,N,N
Pendle Borough Council,Financial Services,Indirect Employee Expenses,Training,1211,CIPFA,A0000563,26/01/2023,AAS0331226,23.15,N,,N,N
Pendle Borough Council,Financial Services,Indirect Employee Expenses,Training,1211,CIPFA,A0000563,26/01/2023,AAS0331227,23.15,N,,N,N
Pendle Borough Council,Financial Services,Indirect Employee Expenses,Training,1211,CIPFA,A0000563,19/01/2023,AAS0331150,295,N,,N,N
Pendle Borough Council,Financial Services,Supplies and Services,Subscriptions & Donations,4706,CIPFA,A0000563,26/01/2023,AAS0331225,295,N,,N,N
Pendle Borough Council,Operational Services,Supplies and Services,Miscellaneous : Other,4707,CANFORD AUDIO LIMITED,A0000606,05/01/2023,OPS0330605,72,N,,N,N
Pendle Borough Council,Operational Services,Supplies and Services,Miscellaneous : Other,4707,CANFORD AUDIO LIMITED,A0000606,05/01/2023,OPS0330605,126,N,,N,N
Pendle Borough Council,Engineering & Special Projects,Premises Related Expense,Bldgs : R & M : Abnormal,2002,MARTIN COLLINS JOINERY & GLAZING,A0000623,26/01/2023,HED0331170,84.5,N,,N,N
Pendle Borough Council,Engineering & Special Projects,Capital Costs,Capital : Payments,CD14,MARTIN COLLINS JOINERY & GLAZING,A0000623,19/01/2023,HED0331055,66,N,,N,N
Pendle Borough Council,Engineering & Special Projects,Transfer Payments,Storage & Homelessness prevention,6104,CAVALIER TAXIS,A0000638,12/01/2023,HED0330866,225,N,,N,N
Pendle Borough Council,Property Services,Premises Related Expense,Bldgs : R & M : Day To Day,2001,J DRIVER LTD,A0000884,19/01/2023,EST0331136,168,N,,N,N
Pendle Borough Council,Property Services,Premises Related Expense,Bldgs : R & M : Day To Day,2001,J DRIVER LTD,A0000884,05/01/2023,EST0330743,384.25,N,,N,N
Pendle Borough Council,Property Services,Premises Related Expense,Bldgs : R & M : Day To Day,2001,J DRIVER LTD,A0000884,19/01/2023,EST0331136,369.75,N,,N,N
Pendle Borough Council,Property Services,Premises Related Expense,Bldgs : R & M : Day To Day,2001,J DRIVER LTD,A0000884,05/01/2023,EST0330743,256.22,N,,N,N
Pendle Borough Council,Property Services,Premises Related Expense,Bldgs : R & M : Day To Day,2001,J DRIVER LTD,A0000884,19/01/2023,EST0331136,272.12,N,,N,N
Pendle Borough Council,Property Services,Premises Related Expense,Bldgs : R & M : Day To Day,2001,J DRIVER LTD,A0000884,19/01/2023,EST0331136,140,N,,N,N
Pendle Borough Council,Property Services,Premises Related Expense,Bldgs : R & M : Day To Day,2001,J DRIVER LTD,A0000884,05/01/2023,EST0330743,412,N,,N,N
Pendle Borough Council,Property Services,Premises Related Expense,Bldgs : R & M : Day To Day,2001,J DRIVER LTD,A0000884,19/01/2023,EST0331136,56,N,,N,N
Pendle Borough Council,Property Services,Premises Related Expense,Bldgs : R & M : Day To Day,2001,J DRIVER LTD,A0000884,19/01/2023,EST0331136,122.7,N,,N,N
Pendle Borough Council,Property Services,Premises Related Expense,Bldgs : R & M : Day To Day,2001,J DRIVER LTD,A0000884,05/01/2023,EST0330743,84.4,N,,N,N
Pendle Borough Council,Property Services,Premises Related Expense,Bldgs : R & M : Day To Day,2001,J DRIVER LTD,A0000884,19/01/2023,EST0331136,98,N,,N,N
Pendle Borough Council,Property Services,Premises Related Expense,Bldgs : R & M : Day To Day,2001,J DRIVER LTD,A0000884,05/01/2023,EST0330743,225.99,N,,N,N
Pendle Borough Council,Property Services,Capital Costs,Capital : Payments,CD14,J DRIVER LTD,A0000884,26/01/2023,EST0331206,11600,N,,N,N
Pendle Borough Council,Engineering & Special Projects,Supplies and Services,Protective Clothing,4201,ENGINEERING & FOUNDRY SUPPLIES,A0001002,19/01/2023,HED0331054,11.8,N,,N,N
Pendle Borough Council,Parks & Recreation Services,Supplies and Services,Protective Clothing,4201,ENGINEERING & FOUNDRY SUPPLIES,A0001002,05/01/2023,PCO0330661,5.15,N,,N,N
Pendle Borough Council,Parks & Recreation Services,Supplies and Services,Protective Clothing,4201,ENGINEERING & FOUNDRY SUPPLIES,A0001002,19/01/2023,PCO0331047,31.85,N,,N,N
Pendle Borough Council,Parks & Recreation Services,Supplies and Services,Protective Clothing,4201,ENGINEERING & FOUNDRY SUPPLIES,A0001002,05/01/2023,PCO0330674,347.85,N,,N,N
Pendle Borough Council,Operational Services,,Stock : Purchases,PJ01,ENGINEERING & FOUNDRY SUPPLIES,A0001002,12/01/2023,OPS0330850,18.59,N,,N,N
Pendle Borough Council,Operational Services,,Stock : Purchases,PJ01,ENGINEERING & FOUNDRY SUPPLIES,A0001002,12/01/2023,OPS0330779,37.18,N,,N,N
Pendle Borough Council,Operational Services,,Stock : Purchases,PJ01,ENGINEERING & FOUNDRY SUPPLIES,A0001002,12/01/2023,OPS0330778,38.2,N,,N,N
Pendle Borough Council,Operational Services,,Stock : Purchases,PJ01,ENGINEERING & FOUNDRY SUPPLIES,A0001002,12/01/2023,OPS0330849,82.8,N,,N,N
Pendle Borough Council,Operational Services,,Stock : Purchases,PJ01,ENGINEERING & FOUNDRY SUPPLIES,A0001002,12/01/2023,OPS0330778,92.95,N,,N,N
Pendle Borough Council,Operational Services,,Stock : Purchases,PJ01,ENGINEERING & FOUNDRY SUPPLIES,A0001002,12/01/2023,OPS0330850,99.4,N,,N,N
Pendle Borough Council,Operational Services,,Stock : Purchases,PJ01,ENGINEERING & FOUNDRY SUPPLIES,A0001002,12/01/2023,OPS0330851,99.4,N,,N,N
Pendle Borough Council,Operational Services,,Stock : Purchases,PJ01,ENGINEERING & FOUNDRY SUPPLIES,A0001002,19/01/2023,OPS0331020,105.6,N,,N,N
Pendle Borough Council,Operational Services,,Stock : Purchases,PJ01,ENGINEERING & FOUNDRY SUPPLIES,A0001002,12/01/2023,OPS0330778,126.72,N,,N,N
Pendle Borough Council,Operational Services,,Stock : Purchases,PJ01,ENGINEERING & FOUNDRY SUPPLIES,A0001002,12/01/2023,OPS0330852,126.72,N,,N,N
Pendle Borough Council,Operational Services,,Stock : Purchases,PJ01,ENGINEERING & FOUNDRY SUPPLIES,A0001002,19/01/2023,OPS0331020,187.2,N,,N,N
Pendle Borough Council,Operational Services,,Stock : Purchases,PJ01,ENGINEERING & FOUNDRY SUPPLIES,A0001002,12/01/2023,OPS0330783,204.49,N,,N,N
Pendle Borough Council,Operational Services,,Stock : Purchases,PJ01,ENGINEERING & FOUNDRY SUPPLIES,A0001002,12/01/2023,OPS0330851,253.44,N,,N,N
Pendle Borough Council,Operational Services,,Stock : Purchases,PJ01,ENGINEERING & FOUNDRY SUPPLIES,A0001002,12/01/2023,OPS0330851,374.4,N,,N,N
Pendle Borough Council,Operational Services,,Stock : Purchases,PJ01,ENGINEERING & FOUNDRY SUPPLIES,A0001002,12/01/2023,OPS0330783,499.2,N,,N,N
Pendle Borough Council,Operational Services,,Stock : Purchases,PJ01,ENGINEERING & FOUNDRY SUPPLIES,A0001002,12/01/2023,OPS0330778,523.12,N,,N,N
Pendle Borough Council,Engineering & Special Projects,,Fees Income : Non-VATable,9302,FORBES SOLICITORS,A0001117,05/01/2023,HED0330697,585,N,,N,N
Pendle Borough Council,Operational Services,Transport Related Expense,Tprt : Repairs : General,3105,FREIGHT TRANSPORT ASSOCIATION,A0001124,12/01/2023,OPS0330846,42,N,,N,N
Pendle Borough Council,Parks & Recreation Services,Transport Related Expense,Tprt : Repairs : General,3105,GIBSONS GARDEN MACHINERY LTD,A0001201,05/01/2023,PCO0330678,36.59,N,,N,N
Pendle Borough Council,Parks & Recreation Services,Transport Related Expense,Tprt : Repairs : General,3105,GIBSONS GARDEN MACHINERY LTD,A0001201,19/01/2023,PCO0331072,44.45,N,,N,N
Pendle Borough Council,Parks & Recreation Services,Transport Related Expense,Tprt : Repairs : General,3105,GIBSONS GARDEN MACHINERY LTD,A0001201,05/01/2023,PCO0330672,202,N,,N,N
Pendle Borough Council,Parks & Recreation Services,Transport Related Expense,Tprt : Repairs : General,3105,GIBSONS GARDEN MACHINERY LTD,A0001201,05/01/2023,PCO0330672,202,N,,N,N
Pendle Borough Council,Parks & Recreation Services,Transport Related Expense,Tprt : Repairs : General,3105,GIBSONS GARDEN MACHINERY LTD,A0001201,05/01/2023,PCO0330672,206.96,N,,N,N
Pendle Borough Council,Parks & Recreation Services,Premises Related Expense,Grounds : R & M : Day to Day : Routine,2101,JEWSON LIMITED,A0001323,19/01/2023,PCO0331043,70,N,,N,N
Pendle Borough Council,Operational Services,,Paid in the Year,PD03,JEWSON LIMITED,A0001323,12/01/2023,OPS0330845,163.47,N,,N,N
Pendle Borough Council,Operational Services,,Paid in the Year,PD03,JEWSON LIMITED,A0001323,12/01/2023,OPS0330845,438,N,,N,N
Pendle Borough Council,Parks & Recreation Services,Premises Related Expense,Bldgs : R & M : Day To Day,2001,LANLEE SUPPLIES LIMITED,A0001672,12/01/2023,PCO0330860,74.7,N,,N,N
Pendle Borough Council,Parks & Recreation Services,Premises Related Expense,Grounds : R & M : Day to Day : Routine,2101,LANLEE SUPPLIES LIMITED,A0001672,19/01/2023,PCO0331046,130.9,N,,N,N
Pendle Borough Council,Parks & Recreation Services,Premises Related Expense,Grounds : R & M : Day to Day : Routine,2101,LANLEE SUPPLIES LIMITED,A0001672,19/01/2023,PCO0331046,135.66,N,,N,N
Pendle Borough Council,Parks & Recreation Services,Premises Related Expense,Grounds : R & M : Day to Day : Routine,2101,LANLEE SUPPLIES LIMITED,A0001672,05/01/2023,PCO0330659,350.47,N,,N,N
Pendle Borough Council,Parks & Recreation Services,Transport Related Expense,Tprt : Repairs : General,3105,DICK LEIGH,A0001675,05/01/2023,PCO0330660,18.36,N,,N,N
Pendle Borough Council,Parks & Recreation Services,Transport Related Expense,Tprt : Repairs : General,3105,DICK LEIGH,A0001675,19/01/2023,PCO0331038,99.61,N,,N,N
Pendle Borough Council,Parks & Recreation Services,Transport Related Expense,Tprt : Repairs : General,3105,DICK LEIGH,A0001675,05/01/2023,PCO0330676,95.55,N,,N,N
Pendle Borough Council,Parks & Recreation Services,Transport Related Expense,Tprt : Repairs : General,3105,DICK LEIGH,A0001675,05/01/2023,PCO0330676,48.14,N,,N,N
Pendle Borough Council,Engineering & Special Projects,Premises Related Expense,Grounds : R & M : Gds Maint ,2103,MONK OF COLNE LTD,A0001828,05/01/2023,HED0330760,500,N,,N,N
Pendle Borough Council,Engineering & Special Projects,Premises Related Expense,Grounds : R & M : Gds Maint ,2103,MONK OF COLNE LTD,A0001828,05/01/2023,HED0330759,14565,N,,N,N
Pendle Borough Council,Operational Services,Premises Related Expense,Grounds : R & M : Day to Day : Routine,2101,JOHN MACADAM & SON (RESCUE) LTD,A0001846,12/01/2023,OPS0330839,48,N,,N,N
Pendle Borough Council,Operational Services,Premises Related Expense,Grounds : R & M : Day to Day : Routine,2101,JOHN MACADAM & SON (RESCUE) LTD,A0001846,12/01/2023,OPS0330840,48,N,,N,N
Pendle Borough Council,Operational Services,Premises Related Expense,Grounds : R & M : Day to Day : Routine,2101,JOHN MACADAM & SON (RESCUE) LTD,A0001846,12/01/2023,OPS0330841,48,N,,N,N
Pendle Borough Council,Operational Services,Premises Related Expense,Grounds : R & M : Day to Day : Routine,2101,JOHN MACADAM & SON (RESCUE) LTD,A0001846,12/01/2023,OPS0330842,48,N,,N,N
Pendle Borough Council,Operational Services,Premises Related Expense,Grounds : R & M : Day to Day : Routine,2101,JOHN MACADAM & SON (RESCUE) LTD,A0001846,19/01/2023,OPS0331061,120,N,,N,N
Pendle Borough Council,Human Resources,Indirect Employee Expenses,Training,1211,NELSON & COLNE COLLEGE,A0001974,26/01/2023,PER0331165,11.11,N,,N,N
Pendle Borough Council,Financial Services,Capital Costs,Capital : Payments,CD14,NELSON & COLNE COLLEGE,A0001974,19/01/2023,AAS0331147,32809.17,N,,N,N
Pendle Borough Council,Financial Services,Capital Costs,Capital : Payments,CD14,NELSON & COLNE COLLEGE,A0001974,19/01/2023,AAS0331147,1620385.98,N,,N,N
Pendle Borough Council,Property Services,Premises Related Expense,Water & Sewerage,2501,WATER PLUS LIMITED,A0001986,12/01/2023,EST0330933,112.92,N,,N,N
Pendle Borough Council,Property Services,Premises Related Expense,Water & Sewerage,2501,WATER PLUS LIMITED,A0001986,12/01/2023,EST0330936,38.28,N,,N,N
Pendle Borough Council,Property Services,Premises Related Expense,Water & Sewerage,2501,WATER PLUS LIMITED,A0001986,05/01/2023,EST0330753,45.97,N,,N,N
Pendle Borough Council,Property Services,Premises Related Expense,Water & Sewerage,2501,WATER PLUS LIMITED,A0001986,12/01/2023,EST0330942,23.49,N,,N,N
Pendle Borough Council,Property Services,Premises Related Expense,Water & Sewerage,2501,WATER PLUS LIMITED,A0001986,05/01/2023,EST4006649,-55.65,N,,N,N
Pendle Borough Council,Property Services,Premises Related Expense,Water & Sewerage,2501,WATER PLUS LIMITED,A0001986,05/01/2023,EST0330752,67.61,N,,N,N
Pendle Borough Council,Property Services,Premises Related Expense,Water & Sewerage,2501,WATER PLUS LIMITED,A0001986,05/01/2023,EST0330746,86,N,,N,N
Pendle Borough Council,Property Services,Premises Related Expense,Water & Sewerage,2501,WATER PLUS LIMITED,A0001986,26/01/2023,EST0331200,89.17,N,,N,N
Pendle Borough Council,Property Services,Premises Related Expense,Water & Sewerage,2501,WATER PLUS LIMITED,A0001986,05/01/2023,EST0330747,132.78,N,,N,N
Pendle Borough Council,Property Services,Premises Related Expense,Water & Sewerage,2501,WATER PLUS LIMITED,A0001986,26/01/2023,EST0331201,136.44,N,,N,N
Pendle Borough Council,Property Services,Premises Related Expense,Water & Sewerage,2501,WATER PLUS LIMITED,A0001986,05/01/2023,EST0330750,45.9,N,,N,N
Pendle Borough Council,Property Services,Premises Related Expense,Water & Sewerage,2501,WATER PLUS LIMITED,A0001986,26/01/2023,EST0331202,46.57,N,,N,N
Pendle Borough Council,Property Services,Premises Related Expense,Water & Sewerage,2501,WATER PLUS LIMITED,A0001986,12/01/2023,EST0330935,17.68,N,,N,N
Pendle Borough Council,Property Services,Premises Related Expense,Water & Sewerage,2501,WATER PLUS LIMITED,A0001986,12/01/2023,EST0330934,8.58,N,,N,N
Pendle Borough Council,Property Services,Premises Related Expense,Water & Sewerage,2501,WATER PLUS LIMITED,A0001986,12/01/2023,EST0330937,22.39,N,,N,N
Pendle Borough Council,Property Services,Premises Related Expense,Water & Sewerage,2501,WATER PLUS LIMITED,A0001986,05/01/2023,EST0330751,11,N,,N,N
Pendle Borough Council,Property Services,Premises Related Expense,Water & Sewerage,2501,WATER PLUS LIMITED,A0001986,26/01/2023,EST0331204,11.28,N,,N,N
Pendle Borough Council,Property Services,Premises Related Expense,Water & Sewerage,2501,WATER PLUS LIMITED,A0001986,26/01/2023,EST0331199,187.9,N,,N,N
Pendle Borough Council,Property Services,Premises Related Expense,Water & Sewerage,2501,WATER PLUS LIMITED,A0001986,05/01/2023,EST0330749,16.26,N,,N,N
Pendle Borough Council,Property Services,Premises Related Expense,Water & Sewerage,2501,WATER PLUS LIMITED,A0001986,26/01/2023,EST0331203,16.77,N,,N,N
Pendle Borough Council,Property Services,Premises Related Expense,Water & Sewerage,2501,WATER PLUS LIMITED,A0001986,05/01/2023,EST0330748,35.83,N,,N,N
Pendle Borough Council,Property Services,Premises Related Expense,Water & Sewerage,2501,WATER PLUS LIMITED,A0001986,26/01/2023,EST0331205,36.56,N,,N,N
Pendle Borough Council,Property Services,Premises Related Expense,Water & Sewerage,2501,WATER PLUS LIMITED,A0001986,19/01/2023,EST0331135,16.13,N,,N,N
Pendle Borough Council,Property Services,Premises Related Expense,Water & Sewerage,2501,WATER PLUS LIMITED,A0001986,12/01/2023,EST0330944,196,N,,N,N
Pendle Borough Council,Operational Services,Premises Related Expense,Bldgs : R & M : Day To Day,2001,OPTION HYGIENE LIMITED,A0002063,05/01/2023,OPS0330545,13.28,N,,N,N
Pendle Borough Council,Parks & Recreation Services,Premises Related Expense,Bldgs : R & M : Day To Day,2001,OPTION HYGIENE LIMITED,A0002063,12/01/2023,PCO0330857,42.99,N,,N,N
Pendle Borough Council,Parks & Recreation Services,Premises Related Expense,Bldgs : R & M : Day To Day,2001,OPTION HYGIENE LIMITED,A0002063,12/01/2023,PCO0330858,47.72,N,,N,N
Pendle Borough Council,Operational Services,Premises Related Expense,Bldgs : R & M : Day To Day,2001,OPTION HYGIENE LIMITED,A0002063,12/01/2023,OPS0330777,10.68,N,,N,N
Pendle Borough Council,Operational Services,Premises Related Expense,Bldgs : R & M : Day To Day,2001,OPTION HYGIENE LIMITED,A0002063,12/01/2023,OPS0330777,27.24,N,,N,N
Pendle Borough Council,Operational Services,Premises Related Expense,Bldgs : R & M : Day To Day,2001,OPTION HYGIENE LIMITED,A0002063,12/01/2023,OPS0330776,47.26,N,,N,N
Pendle Borough Council,Engineering & Special Projects,Supplies and Services,Other Expenses,4705,OLD LAUND BOOTH PARISH COUNCIL,A0002067,19/01/2023,HED0331050,2500,N,,N,N
Pendle Borough Council,Engineering & Special Projects,Supplies and Services,Postages,4501,ROYAL MAIL GROUP LIMITED,A0002281,19/01/2023,HED0331031,1.75,N,,N,N
Pendle Borough Council,Engineering & Special Projects,Supplies and Services,Postages,4501,ROYAL MAIL GROUP LIMITED,A0002281,05/01/2023,HED0330696,44.24,N,,N,N
Pendle Borough Council,Engineering & Special Projects,Supplies and Services,Postages,4501,ROYAL MAIL GROUP LIMITED,A0002281,26/01/2023,HED0331182,64.71,N,,N,N
Pendle Borough Council,Engineering & Special Projects,Supplies and Services,Postages,4501,ROYAL MAIL GROUP LIMITED,A0002281,12/01/2023,HED0330894,87.36,N,,N,N
Pendle Borough Council,Engineering & Special Projects,Supplies and Services,Postages,4501,ROYAL MAIL GROUP LIMITED,A0002281,19/01/2023,HED0331031,189.28,N,,N,N
Pendle Borough Council,Engineering & Special Projects,Supplies and Services,Postages,4501,ROYAL MAIL GROUP LIMITED,A0002281,05/01/2023,HED0330686,304.66,N,,N,N
Pendle Borough Council,Engineering & Special Projects,Supplies and Services,Postages,4501,ROYAL MAIL GROUP LIMITED,A0002281,19/01/2023,HED0331031,20.16,N,,N,N
Pendle Borough Council,Engineering & Special Projects,Supplies and Services,Postages,4501,ROYAL MAIL GROUP LIMITED,A0002281,26/01/2023,HED0331182,20.58,N,,N,N
Pendle Borough Council,Engineering & Special Projects,Supplies and Services,Postages,4501,ROYAL MAIL GROUP LIMITED,A0002281,05/01/2023,HED0330696,23.52,N,,N,N
Pendle Borough Council,Engineering & Special Projects,Supplies and Services,Postages,4501,ROYAL MAIL GROUP LIMITED,A0002281,19/01/2023,HED0331031,43.68,N,,N,N
Pendle Borough Council,Engineering & Special Projects,Supplies and Services,Postages,4501,ROYAL MAIL GROUP LIMITED,A0002281,12/01/2023,HED0330894,47.04,N,,N,N
Pendle Borough Council,Engineering & Special Projects,Supplies and Services,Postages,4501,ROYAL MAIL GROUP LIMITED,A0002281,19/01/2023,HED0331031,0.4,N,,N,N
Pendle Borough Council,Engineering & Special Projects,Supplies and Services,Postages,4501,ROYAL MAIL GROUP LIMITED,A0002281,12/01/2023,HED0330894,1.92,N,,N,N
Pendle Borough Council,Engineering & Special Projects,Supplies and Services,Postages,4501,ROYAL MAIL GROUP LIMITED,A0002281,26/01/2023,HED0331182,3.28,N,,N,N
Pendle Borough Council,Engineering & Special Projects,Supplies and Services,Postages,4501,ROYAL MAIL GROUP LIMITED,A0002281,05/01/2023,HED0330696,10.14,N,,N,N
Pendle Borough Council,Engineering & Special Projects,Supplies and Services,Postages,4501,ROYAL MAIL GROUP LIMITED,A0002281,05/01/2023,HED0330696,3.36,N,,N,N
Pendle Borough Council,Engineering & Special Projects,Supplies and Services,Postages,4501,ROYAL MAIL GROUP LIMITED,A0002281,12/01/2023,HED0330894,3.36,N,,N,N
Pendle Borough Council,Engineering & Special Projects,Supplies and Services,Postages,4501,ROYAL MAIL GROUP LIMITED,A0002281,19/01/2023,HED0331031,3.8,N,,N,N
Pendle Borough Council,Engineering & Special Projects,Supplies and Services,Postages,4501,ROYAL MAIL GROUP LIMITED,A0002281,26/01/2023,HED0331182,5.32,N,,N,N
Pendle Borough Council,Engineering & Special Projects,Supplies and Services,Postages,4501,ROYAL MAIL GROUP LIMITED,A0002281,05/01/2023,HED0330696,8.54,N,,N,N
Pendle Borough Council,Engineering & Special Projects,Supplies and Services,Postages,4501,ROYAL MAIL GROUP LIMITED,A0002281,26/01/2023,HED0331182,10.02,N,,N,N
Pendle Borough Council,Engineering & Special Projects,Supplies and Services,Postages,4501,ROYAL MAIL GROUP LIMITED,A0002281,19/01/2023,HED0331031,13.99,N,,N,N
Pendle Borough Council,Engineering & Special Projects,Supplies and Services,Postages,4501,ROYAL MAIL GROUP LIMITED,A0002281,05/01/2023,HED0330696,17.84,N,,N,N
Pendle Borough Council,Engineering & Special Projects,Supplies and Services,Postages,4501,ROYAL MAIL GROUP LIMITED,A0002281,12/01/2023,HED0330894,21.07,N,,N,N
Pendle Borough Council,Engineering & Special Projects,Supplies and Services,Postages,4501,ROYAL MAIL GROUP LIMITED,A0002281,19/01/2023,HED0331031,28.52,N,,N,N
Pendle Borough Council,Engineering & Special Projects,Supplies and Services,Postages,4501,ROYAL MAIL GROUP LIMITED,A0002281,19/01/2023,HED0331031,4.08,N,,N,N
Pendle Borough Council,Engineering & Special Projects,Supplies and Services,Postages,4501,ROYAL MAIL GROUP LIMITED,A0002281,12/01/2023,HED0330894,18.97,N,,N,N
Pendle Borough Council,Engineering & Special Projects,Supplies and Services,Postages,4501,ROYAL MAIL GROUP LIMITED,A0002281,26/01/2023,HED0331182,32.68,N,,N,N
Pendle Borough Council,Engineering & Special Projects,Supplies and Services,Postages,4501,ROYAL MAIL GROUP LIMITED,A0002281,05/01/2023,HED0330696,101.17,N,,N,N
Pendle Borough Council,Engineering & Special Projects,Supplies and Services,Postages,4501,ROYAL MAIL GROUP LIMITED,A0002281,05/01/2023,HED0330687,9.38,N,,N,N
Pendle Borough Council,Engineering & Special Projects,Supplies and Services,Postages,4501,ROYAL MAIL GROUP LIMITED,A0002281,05/01/2023,HED0330687,25.52,N,,N,N
Pendle Borough Council,Engineering & Special Projects,Supplies and Services,Postages,4501,ROYAL MAIL GROUP LIMITED,A0002281,12/01/2023,HED0330894,38.28,N,,N,N
Pendle Borough Council,Engineering & Special Projects,Supplies and Services,Postages,4501,ROYAL MAIL GROUP LIMITED,A0002281,26/01/2023,HED0331182,73.36,N,,N,N
Pendle Borough Council,Engineering & Special Projects,Supplies and Services,Postages,4501,ROYAL MAIL GROUP LIMITED,A0002281,19/01/2023,HED0331031,101.8,N,,N,N
Pendle Borough Council,Engineering & Special Projects,Supplies and Services,Postages,4501,ROYAL MAIL GROUP LIMITED,A0002281,05/01/2023,HED0330696,187.04,N,,N,N
Pendle Borough Council,Engineering & Special Projects,Supplies and Services,Postages,4501,ROYAL MAIL GROUP LIMITED,A0002281,26/01/2023,HED0331182,2.24,N,,N,N
Pendle Borough Council,Engineering & Special Projects,Supplies and Services,Postages,4501,ROYAL MAIL GROUP LIMITED,A0002281,26/01/2023,HED0331182,7.56,N,,N,N
Pendle Borough Council,Engineering & Special Projects,Supplies and Services,Postages,4501,ROYAL MAIL GROUP LIMITED,A0002281,12/01/2023,HED0330894,10.48,N,,N,N
Pendle Borough Council,Engineering & Special Projects,Supplies and Services,Postages,4501,ROYAL MAIL GROUP LIMITED,A0002281,19/01/2023,HED0331031,13.64,N,,N,N
Pendle Borough Council,Engineering & Special Projects,Supplies and Services,Postages,4501,ROYAL MAIL GROUP LIMITED,A0002281,05/01/2023,HED0330696,14.54,N,,N,N
Pendle Borough Council,Engineering & Special Projects,Supplies and Services,Postages,4501,ROYAL MAIL GROUP LIMITED,A0002281,19/01/2023,HED0330997,46.99,N,,N,N
Pendle Borough Council,Engineering & Special Projects,Supplies and Services,Postages,4501,ROYAL MAIL GROUP LIMITED,A0002281,26/01/2023,HED0331182,1.75,N,,N,N
Pendle Borough Council,Engineering & Special Projects,Supplies and Services,Postages,4501,ROYAL MAIL GROUP LIMITED,A0002281,05/01/2023,HED0330696,17.92,N,,N,N
Pendle Borough Council,Engineering & Special Projects,Supplies and Services,Postages,4501,ROYAL MAIL GROUP LIMITED,A0002281,19/01/2023,HED0331031,130.35,N,,N,N
Pendle Borough Council,Engineering & Special Projects,Supplies and Services,Postages,4501,ROYAL MAIL GROUP LIMITED,A0002281,12/01/2023,HED0330894,133.84,N,,N,N
Pendle Borough Council,Engineering & Special Projects,Supplies and Services,Postages,4501,ROYAL MAIL GROUP LIMITED,A0002281,26/01/2023,HED0331182,147.97,N,,N,N
Pendle Borough Council,Engineering & Special Projects,Supplies and Services,Postages,4501,ROYAL MAIL GROUP LIMITED,A0002281,05/01/2023,HED0330696,265.87,N,,N,N
Pendle Borough Council,Engineering & Special Projects,Supplies and Services,Postages,4501,ROYAL MAIL GROUP LIMITED,A0002281,26/01/2023,HED0331182,9.46,N,,N,N
Pendle Borough Council,Engineering & Special Projects,Supplies and Services,Postages,4501,ROYAL MAIL GROUP LIMITED,A0002281,26/01/2023,HED0331182,59.79,N,,N,N
Pendle Borough Council,Engineering & Special Projects,Supplies and Services,Postages,4501,ROYAL MAIL GROUP LIMITED,A0002281,19/01/2023,HED0331031,64.71,N,,N,N
Pendle Borough Council,Engineering & Special Projects,Supplies and Services,Postages,4501,ROYAL MAIL GROUP LIMITED,A0002281,12/01/2023,HED0330894,67.27,N,,N,N
Pendle Borough Council,Engineering & Special Projects,Supplies and Services,Postages,4501,ROYAL MAIL GROUP LIMITED,A0002281,05/01/2023,HED0330696,89.74,N,,N,N
Pendle Borough Council,Financial Services,Supplies and Services,Levies,4423,RIBBLE VALLEY BOROUGH COUNCIL,A0002290,26/01/2023,AAS0331228,1818.18,N,,N,N
Pendle Borough Council,Financial Services,Supplies and Services,Levies,4423,RIBBLE VALLEY BOROUGH COUNCIL,A0002290,26/01/2023,AAS0331228,56901,N,,N,N
Pendle Borough Council,Operational Services,Agency Staff,Emp : Agency Wages,1004,STANLEY BROTHERS (TIPPERS) LTD,A0002422,12/01/2023,OPS0330903,144,N,,N,N
Pendle Borough Council,Operational Services,Transport Related Expense,Tprt : Annual Hire Charge,3601,STANLEY BROTHERS (TIPPERS) LTD,A0002422,12/01/2023,OPS0330896,2200,N,,N,N
Pendle Borough Council,Parks & Recreation Services,Premises Related Expense,Grounds : R & M : Day to Day : Routine,2101,T & F STEEL DESIGNS LTD,A0002627,19/01/2023,PCO0331037,1552,N,,N,N
Pendle Borough Council,Parks & Recreation Services,Premises Related Expense,Grounds : R & M : Day to Day : Routine,2101,T & F STEEL DESIGNS LTD,A0002627,19/01/2023,PCO0331037,388,N,,N,N
Pendle Borough Council,Engineering & Special Projects,Premises Related Expense,Grounds : R & M : Day to Day : Routine,2101,T & F STEEL DESIGNS LTD,A0002627,12/01/2023,HED0330952,345,N,,N,N
Pendle Borough Council,Engineering & Special Projects,Capital Costs,Ren Grant : 1996 Act,CH22,CLOSOMAT LIMITED,A0002685,19/01/2023,HED0330968,3868,N,,N,N
Pendle Borough Council,Operational Services,Agency Staff,Emp : Agency Wages,1004,DHRB LIMITED T/A DRIVER HIRE (45680),A0003556,05/01/2023,OPS0330606,317.95,N,,N,N
Pendle Borough Council,Operational Services,Premises Related Expense,Grounds : R & M : Day to Day : Routine,2101,ENVIRONMENT AGENCY,A0003560,12/01/2023,OPS0330784,430,N,,N,N
Pendle Borough Council,Engineering & Special Projects,Supplies and Services,Other Expenses,4705,BUILDING BRIDGES PENDLE,A0005524,19/01/2023,HED0331144,3750,N,1144741,N,N
Pendle Borough Council,Engineering & Special Projects,Indirect Employee Expenses,Staff Refreshments,1261,PHILIP SANDERSON,A0006611,12/01/2023,HED0330881,20.23,N,,N,N
Pendle Borough Council,Engineering & Special Projects,Supplies and Services,Hospitality,4611,PHILIP SANDERSON,A0006611,12/01/2023,HED0330881,20.23,N,,N,N
Pendle Borough Council,Engineering & Special Projects,Indirect Employee Expenses,Emp : Practising Certificates,1201,CILEX  REGULATION LIMITED,A0007913,19/01/2023,HED0331066,240,N,,N,N
Pendle Borough Council,Engineering & Special Projects,Indirect Employee Expenses,Emp : Practising Certificates,1201,CILEX  REGULATION LIMITED,A0007913,19/01/2023,HED0331068,367,N,,N,N
Pendle Borough Council,Engineering & Special Projects,Indirect Employee Expenses,Emp : Practising Certificates,1201,CILEX  REGULATION LIMITED,A0007913,19/01/2023,HED0331074,367,N,,N,N
Pendle Borough Council,Engineering & Special Projects,Supplies and Services,Other Expenses,4705,COLNE OPEN DOOR CENTRE,A0009836,19/01/2023,HED0330962,3750,N,1121144,N,N
Pendle Borough Council,Engineering & Special Projects,Premises Related Expense,Bldgs : R & M : Abnormal,2002,CPC PROP & GARDENING SERV LTD,A0011770,19/01/2023,HED0331028,560,N,,N,N
Pendle Borough Council,Engineering & Special Projects,Supplies and Services,Children`s holiday activities,4716,PENDLE LEISURE LIMITED,A0012961,12/01/2023,HED0330888,112,N,XR43029,N,N
Pendle Borough Council,Engineering & Special Projects,Supplies and Services,Children`s holiday activities,4716,PENDLE LEISURE LIMITED,A0012961,12/01/2023,HED0330889,207.5,N,XR43029,N,N
Pendle Borough Council,Engineering & Special Projects,Premises Related Expense,Grounds : R & M : Day to Day : Routine,2101,WILLIAM SMITH GROUP 1832 LIMITED,A0013824,19/01/2023,HED0331101,1054,N,,N,N
Pendle Borough Council,Engineering & Special Projects,Capital Costs,Ren Grant : 1996 Act,CH22,SPAIN BUILDING & MAINTENANCE,A0015325,05/01/2023,HED0330694,4237,N,,N,N
Pendle Borough Council,Operational Services,Supplies and Services,Sub-Contractors,4007,ORCHARD RECYCLING SERVICE,A0015803,12/01/2023,OPS0330898,1917.3,N,,N,N
Pendle Borough Council,Operational Services,Supplies and Services,Sub-Contractors,4007,ORCHARD RECYCLING SERVICE,A0015803,05/01/2023,OPS0330711,2040.5,N,,N,N
Pendle Borough Council,Operational Services,Supplies and Services,Sub-Contractors,4007,ORCHARD RECYCLING SERVICE,A0015803,19/01/2023,OPS0331017,2502.5,N,,N,N
Pendle Borough Council,Engineering & Special Projects,Capital Costs,Ren Grant : 1996 Act,CH22,STANNAH LIFT SERVICES LTD,A0021089,19/01/2023,HED0330969,3561,N,,N,N
Pendle Borough Council,Engineering & Special Projects,Capital Costs,Ren Grant : 1996 Act,CH22,STANNAH LIFT SERVICES LTD,A0021089,19/01/2023,HED0330970,3892,N,,N,N
Pendle Borough Council,Engineering & Special Projects,Capital Costs,Ren Grant : 1996 Act,CH22,STANNAH LIFT SERVICES LTD,A0021089,19/01/2023,HED0330967,6828,N,,N,N
Pendle Borough Council,Operational Services,Supplies and Services,Sub-Contractors,4007,ASPEN VALLEY KENNELS & CATTERY,A0022106,12/01/2023,OPS0330897,825,N,,N,N
Pendle Borough Council,Operational Services,Supplies and Services,Other Expenses,4705,ASPEN VALLEY KENNELS & CATTERY,A0022106,12/01/2023,OPS0330897,1038.6,N,,N,N
Pendle Borough Council,Parks & Recreation Services,Premises Related Expense,Bldgs : R & M : Day To Day,2001,MABRON PLASTICS LTD,A0024126,19/01/2023,PCO0331036,1332,N,,N,N
Pendle Borough Council,Engineering & Special Projects,Supplies and Services,Other Expenses,4705,GRADKO INTERNATIONAL LTD,A0025806,19/01/2023,HED0330979,201.6,N,,N,N
Pendle Borough Council,Planning & Building Control,Supplies and Services,Grants/Contributions,4739,PENNINE EVENTS LIMITED,A0027128,19/01/2023,PBC0330981,349.58,N,,N,N
Pendle Borough Council,Human Resources,Indirect Employee Expenses,Emp : Medical Expenses,1236,SOLACE GROUP LIMITED,A0040401,19/01/2023,PER0330993,987.2,N,,N,N
Pendle Borough Council,Engineering & Special Projects,Supplies and Services,Printing & Stationery,4301,CIVICA ELECTION SERVICES,A0041321,19/01/2023,HED0331032,2266.38,N,,N,N
Pendle Borough Council,Engineering & Special Projects,Supplies and Services,Postages,4501,CIVICA ELECTION SERVICES,A0041321,19/01/2023,HED0331032,2850.45,N,,N,N
Pendle Borough Council,Engineering & Special Projects,Supplies and Services,Other Expenses,4705,METCRAFT LIGHTING LTD,A0042358,19/01/2023,HED0331100,1345,N,,N,N
Pendle Borough Council,Engineering & Special Projects,Supplies and Services,Subscriptions & Donations,4706,COUNCIL FOR VOLUNTARY SERVICE,A0042503,19/01/2023,HED0331143,5000,N,1062446,N,N
Pendle Borough Council,Operational Services,Supplies and Services,Sub-Contractors,4007,S M SHEPHERD BUILDING CONTRACTORS,A0044037,12/01/2023,OPS0330844,260,N,,N,N
Pendle Borough Council,Operational Services,Supplies and Services,Sub-Contractors,4007,S M SHEPHERD BUILDING CONTRACTORS,A0044037,12/01/2023,OPS0330844,260,N,,N,N
Pendle Borough Council,Operational Services,,Paid in the Year,PD03,S M SHEPHERD BUILDING CONTRACTORS,A0044037,12/01/2023,OPS0330843,180,N,,N,N
Pendle Borough Council,Operational Services,,Paid in the Year,PD03,S M SHEPHERD BUILDING CONTRACTORS,A0044037,12/01/2023,OPS0330843,180,N,,N,N
Pendle Borough Council,Human Resources,Supplies and Services,EFM : Office and computer equipment,4002,HFX LTD,A0046816,19/01/2023,PER0330985,316.65,N,,N,N
Pendle Borough Council,Human Resources,Supplies and Services,EFM : Office and computer equipment,4002,HFX LTD,A0046816,19/01/2023,PER0330984,2154.24,N,,N,N
Pendle Borough Council,Parks & Recreation Services,Premises Related Expense,Bldgs : R & M : Day To Day,2001,NATIONAL ASSOC OF MEMORIAL MASONS,A0050779,05/01/2023,PCO0330658,220,N,,N,N
Pendle Borough Council,Parks & Recreation Services,Transport Related Expense,Tprt : Repairs : General,3105,ROSSENDALE VULCANISING (SALES LTD),A0051239,12/01/2023,PCO0330863,25,N,,N,N
Pendle Borough Council,Parks & Recreation Services,Transport Related Expense,Tprt : Repairs : General,3105,ROSSENDALE VULCANISING (SALES LTD),A0051239,12/01/2023,PCO0330864,110,N,,N,N
Pendle Borough Council,Human Resources,Indirect Employee Expenses,Recruitment,1221,LIBERATA UK LTD,A0051618,19/01/2023,PER0330983,16.15,N,,N,N
Pendle Borough Council,Human Resources,Indirect Employee Expenses,Emp : Medical Expenses,1236,LIBERATA UK LTD,A0051618,19/01/2023,PER0330983,34.08,N,,N,N
Pendle Borough Council,Financial Services,Premises Related Expense,Rents,2301,LIBERATA UK LTD,A0051618,12/01/2023,AAS0330954,502.33,N,,N,N
Pendle Borough Council,Financial Services,Agency Costs,Liberata,5301,LIBERATA UK LTD,A0051618,26/01/2023,AAS0331224,3926.09,N,,N,N
Pendle Borough Council,Engineering & Special Projects,Capital Costs,Capital: Design Fees,CD53,LIBERATA UK LTD,A0051618,19/01/2023,HED0330996,3947.83,N,,N,N
Pendle Borough Council,Property Services,Premises Related Expense,Electricity,2203,SOUTHERN ELECTRIC,A0051726,19/01/2023,EST0331120,426.69,N,,N,N
Pendle Borough Council,Operational Services,Capital Costs,Capital : Payments,CD14,MGB PLASTICS LIMITED,A0052535,12/01/2023,OPS0330905,990,N,,N,N
Pendle Borough Council,Operational Services,Capital Costs,Capital : Payments,CD14,MGB PLASTICS LIMITED,A0052535,12/01/2023,OPS0330907,1680,N,,N,N
Pendle Borough Council,Operational Services,Capital Costs,Capital : Payments,CD14,MGB PLASTICS LIMITED,A0052535,12/01/2023,OPS0330908,1775,N,,N,N
Pendle Borough Council,Operational Services,Capital Costs,Capital : Payments,CD14,MGB PLASTICS LIMITED,A0052535,12/01/2023,OPS0330853,1980,N,,N,N
Pendle Borough Council,Operational Services,Capital Costs,Capital : Payments,CD14,MGB PLASTICS LIMITED,A0052535,12/01/2023,OPS0330854,2050,N,,N,N
Pendle Borough Council,Operational Services,Capital Costs,Capital : Payments,CD14,MGB PLASTICS LIMITED,A0052535,12/01/2023,OPS0330855,8200,N,,N,N
Pendle Borough Council,Operational Services,Capital Costs,Capital : Payments,CD14,MGB PLASTICS LIMITED,A0052535,12/01/2023,OPS0330906,8200,N,,N,N
Pendle Borough Council,Engineering & Special Projects,Premises Related Expense,Bldgs : R & M : Abnormal,2002,WHATMORE LTD,A0054380,26/01/2023,HED0331156,126,N,,N,N
Pendle Borough Council,Engineering & Special Projects,Premises Related Expense,Bldgs : R & M : Abnormal,2002,WHATMORE LTD,A0054380,19/01/2023,HED0330974,781,N,,N,N
Pendle Borough Council,Engineering & Special Projects,Capital Costs,Ren Grant : 1996 Act,CH22,WHATMORE LTD,A0054380,05/01/2023,HED0330695,6315,N,,N,N
Pendle Borough Council,Financial Services,Supplies and Services,Seminars etc All Costs,4601,BiP SOLUTIONS LTD,A0054621,26/01/2023,AAS0331223,175,N,,N,N
Pendle Borough Council,Engineering & Special Projects,Supplies and Services,Other Expenses,4705,TOGETHER HOUSING ASSOCIATION,A0055008,12/01/2023,HED0330868,179.5,N,,N,N
Pendle Borough Council,Property Services,Supplies and Services,Other Expenses,4705,CO2 CONSULTANTS LIMITED,A0056312,19/01/2023,EST0331114,150,N,,N,N
Pendle Borough Council,Property Services,Supplies and Services,Other Expenses,4705,CO2 CONSULTANTS LIMITED,A0056312,19/01/2023,EST0331115,150,N,,N,N
Pendle Borough Council,Planning & Building Control,Supplies and Services,EFM Materials,4004,SCOTT DAWSON ADVERTISING LTD,A0056526,19/01/2023,PBC0330982,150,N,,N,N
Pendle Borough Council,Parks & Recreation Services,Transport Related Expense,Tprt : Repairs : General,3105,HYDRAIR,A0056976,12/01/2023,PCO0330865,128.81,N,,N,N
Pendle Borough Council,Parks & Recreation Services,Premises Related Expense,Grounds : R & M : Day to Day : Routine,2101,A BINNS & CO,A0057121,05/01/2023,PCO0330677,600,N,,N,N
Pendle Borough Council,Parks & Recreation Services,Premises Related Expense,Grounds : R & M : Day to Day : Routine,2101,A BINNS & CO,A0057121,05/01/2023,PCO0330677,300,N,,N,N
Pendle Borough Council,Property Services,Premises Related Expense,Gas,2202,BRITISH GAS,A0057202,05/01/2023,EST0330754,46.18,N,,N,N
Pendle Borough Council,Engineering & Special Projects,Supplies and Services,Printing & Stationery,4301,CIVICA UK LIMITED,A0057595,05/01/2023,HED0330708,425.94,N,,N,N
Pendle Borough Council,Engineering & Special Projects,Supplies and Services,Postages,4501,CIVICA UK LIMITED,A0057595,26/01/2023,HED0331191,3546.3,N,,N,N
Pendle Borough Council,Engineering & Special Projects,Supplies and Services,Miscellaneous : Other,4707,CIVICA UK LIMITED,A0057595,19/01/2023,HED0331030,1668.38,N,,N,N
Pendle Borough Council,Engineering & Special Projects,Supplies and Services,EFM : Office and computer equipment,4002,CIVICA UK LIMITED,A0057596,26/01/2023,HED0331169,5700,N,,N,N
Pendle Borough Council,Operational Services,Premises Related Expense,Bldgs : R & M : Day To Day,2001,CHUBB FIRE & SECURITY LTD,A0057603,12/01/2023,OPS0330904,365.18,N,,N,N
Pendle Borough Council,Operational Services,Premises Related Expense,Bldgs : R & M : Day To Day,2001,P LEE WASTE OIL LIMTED,A0058412,05/01/2023,OPS0330546,820,N,,N,N
Pendle Borough Council,Operational Services,Transport Related Expense,Tprt : Repairs : General,3105,UNITED UTILITIES,A0059246,12/01/2023,OPS0330895,23.45,N,,N,N
Pendle Borough Council,Operational Services,Transport Related Expense,Tprt : Repairs : General,3105,UNITED UTILITIES,A0059246,12/01/2023,OPS0330895,23.45,N,,N,N
Pendle Borough Council,Engineering & Special Projects,Agency Costs,Lancashire C C,5102,NSL LIMITED,A0059256,19/01/2023,HED0330998,1810.38,N,,N,N
Pendle Borough Council,Engineering & Special Projects,Agency Costs,Lancashire C C,5102,NSL LIMITED,A0059256,05/01/2023,HED0330684,2136.42,N,,N,N
Pendle Borough Council,Engineering & Special Projects,Supplies and Services,Adverts : Statutory Notice,4702,NATIONAL WORLD PUBLISHING LTD,A0059640,05/01/2023,HED0330673,291.6,N,,N,N
Pendle Borough Council,Engineering & Special Projects,Supplies and Services,Adverts : Statutory Notice,4702,NATIONAL WORLD PUBLISHING LTD,A0059640,19/01/2023,HED0330995,364.5,N,,N,N
Pendle Borough Council,Engineering & Special Projects,Supplies and Services,Adverts : Statutory Notice,4702,NATIONAL WORLD PUBLISHING LTD,A0059640,26/01/2023,HED0331179,364.5,N,,N,N
Pendle Borough Council,Engineering & Special Projects,Supplies and Services,Publicity & advertisement,4704,NATIONAL WORLD PUBLISHING LTD,A0059640,19/01/2023,HED0331027,432,N,,N,N
Pendle Borough Council,Engineering & Special Projects,,Other Income : Non-VATable,9303,NATIONAL WORLD PUBLISHING LTD,A0059640,12/01/2023,HED0330886,218.7,N,,N,N
Pendle Borough Council,Engineering & Special Projects,,Other Income : Non-VATable,9303,NATIONAL WORLD PUBLISHING LTD,A0059640,12/01/2023,HED0330885,388.8,N,,N,N
Pendle Borough Council,Engineering & Special Projects,Capital Costs,Capital : Payments,CD14,NATIONAL WORLD PUBLISHING LTD,A0059640,12/01/2023,HED0330882,291.6,N,,N,N
Pendle Borough Council,Engineering & Special Projects,Capital Costs,Capital : Payments,CD14,NATIONAL WORLD PUBLISHING LTD,A0059640,19/01/2023,HED0330994,291.6,N,,N,N
Pendle Borough Council,Engineering & Special Projects,Transfer Payments,Accommodation ,6103,HILL VIEW (PRIVATE) HOTEL,A0059754,12/01/2023,HED0330874,24140,N,,N,N
Pendle Borough Council,Financial Services,Capital Costs,Capital: Design Fees,CD53,PENDLE HIPPODROME THEATRE LTD,A0060913,19/01/2023,AAS0331151,14400,N,,N,N
Pendle Borough Council,Operational Services,Premises Related Expense,Bldgs : R & M : Day To Day,2001,NORTH WEST TRADING COMPANY,A0063527,05/01/2023,OPS0330602,160.55,N,,N,N
Pendle Borough Council,Human Resources,Indirect Employee Expenses,Emp : Medical Expenses,1236,COLNE OSTEOPATHY,A0065115,19/01/2023,PER0330992,38,N,,N,N
Pendle Borough Council,Human Resources,Indirect Employee Expenses,Emp : Medical Expenses,1236,COLNE OSTEOPATHY,A0065115,19/01/2023,PER0330987,70,N,,N,N
Pendle Borough Council,Human Resources,Indirect Employee Expenses,Emp : Medical Expenses,1236,COLNE OSTEOPATHY,A0065115,19/01/2023,PER0330990,150,N,,N,N
Pendle Borough Council,Human Resources,Indirect Employee Expenses,Emp : Medical Expenses,1236,COLNE OSTEOPATHY,A0065115,19/01/2023,PER0330988,160,N,,N,N
Pendle Borough Council,Human Resources,Indirect Employee Expenses,Emp : Medical Expenses,1236,COLNE OSTEOPATHY,A0065115,19/01/2023,PER0330991,160,N,,N,N
Pendle Borough Council,Human Resources,Indirect Employee Expenses,Emp : Medical Expenses,1236,COLNE OSTEOPATHY,A0065115,19/01/2023,PER0330989,180,N,,N,N
Pendle Borough Council,Engineering & Special Projects,Capital Costs,Ren Grant : 1996 Act,CH22,ATM CONSTRUCTION LTD,A0066308,19/01/2023,HED0330971,12114.15,N,,N,N
Pendle Borough Council,Human Resources,Transport Related Expense,Tprt : Annual Hire Charge,3601,LEX AUTOLEASE LIMITED,A0066530,12/01/2023,PER0330870,343.04,N,,N,N
Pendle Borough Council,Human Resources,Transport Related Expense,Tprt : Annual Hire Charge,3601,LEX AUTOLEASE LIMITED,A0066530,26/01/2023,PER0331167,343.04,N,,N,N
Pendle Borough Council,Human Resources,Transport Related Expense,Car Allows : Offs : Lease Exps,3806,LEX AUTOLEASE LIMITED,A0066530,26/01/2023,PER0331168,1694.46,N,,N,N
Pendle Borough Council,Human Resources,Transport Related Expense,Car Allows : Offs : Lease Exps,3806,LEX AUTOLEASE LIMITED,A0066530,26/01/2023,PER0331168,2691.12,N,,N,N
Pendle Borough Council,Property Services,Premises Related Expense,Bldgs : R & M : Day To Day,2001,SPEAKMAN CONTRACTORS LTD,A0066581,26/01/2023,EST0331194,41.9,N,,N,N
Pendle Borough Council,Property Services,Premises Related Expense,Bldgs : R & M : Day To Day,2001,SPEAKMAN CONTRACTORS LTD,A0066581,26/01/2023,EST0331194,181.55,N,,N,N
Pendle Borough Council,Property Services,Premises Related Expense,Bldgs : R & M : Day To Day,2001,SPEAKMAN CONTRACTORS LTD,A0066581,26/01/2023,EST0331194,265.34,N,,N,N
Pendle Borough Council,Property Services,Premises Related Expense,Bldgs : R & M : Day To Day,2001,SPEAKMAN CONTRACTORS LTD,A0066581,19/01/2023,EST0331117,293.41,N,,N,N
Pendle Borough Council,Property Services,Premises Related Expense,Bldgs : R & M : Day To Day,2001,SPEAKMAN CONTRACTORS LTD,A0066581,19/01/2023,EST0331117,252.1,N,,N,N
Pendle Borough Council,Property Services,Premises Related Expense,Bldgs : R & M : Day To Day,2001,SPEAKMAN CONTRACTORS LTD,A0066581,26/01/2023,EST0331194,167.58,N,,N,N
Pendle Borough Council,Property Services,Premises Related Expense,Bldgs : R & M : Day To Day,2001,SPEAKMAN CONTRACTORS LTD,A0066581,26/01/2023,EST0331194,456.37,N,,N,N
Pendle Borough Council,Property Services,Premises Related Expense,Bldgs : R & M : Day To Day,2001,SPEAKMAN CONTRACTORS LTD,A0066581,26/01/2023,EST0331194,82.79,N,,N,N
Pendle Borough Council,Property Services,Premises Related Expense,Bldgs : R & M : Day To Day,2001,SPEAKMAN CONTRACTORS LTD,A0066581,26/01/2023,EST0331194,91.51,N,,N,N
Pendle Borough Council,Property Services,Premises Related Expense,Bldgs : R & M : Day To Day,2001,SPEAKMAN CONTRACTORS LTD,A0066581,19/01/2023,EST0331117,97.93,N,,N,N
Pendle Borough Council,Property Services,Premises Related Expense,Bldgs : R & M : Day To Day,2001,SPEAKMAN CONTRACTORS LTD,A0066581,19/01/2023,EST0331117,287.63,N,,N,N
Pendle Borough Council,Property Services,Premises Related Expense,Bldgs : R & M : Day To Day,2001,SPEAKMAN CONTRACTORS LTD,A0066581,19/01/2023,EST0331117,463.42,N,,N,N
Pendle Borough Council,Property Services,Premises Related Expense,Grounds : R & M : Day to Day : Routine,2101,SPEAKMAN CONTRACTORS LTD,A0066581,26/01/2023,EST0331194,73.36,N,,N,N
Pendle Borough Council,Property Services,Capital Costs,Capital : Payments,CD14,SPEAKMAN CONTRACTORS LTD,A0066581,19/01/2023,EST0331117,120.11,N,,N,N
Pendle Borough Council,Property Services,Capital Costs,Capital : Payments,CD14,SPEAKMAN CONTRACTORS LTD,A0066581,26/01/2023,EST0331194,88.92,N,,N,N
Pendle Borough Council,Operational Services,Supplies and Services,EFM : Office and computer equipment,4002,BACK CARE SOLUTIONS LIMITED,A0067155,12/01/2023,OPS0330780,887,N,,N,N
Pendle Borough Council,Human Resources,Indirect Employee Expenses,Emp : Medical Expenses,1236,PEOPLE ASSET MANAGEMENT LIMITED,A0067613,19/01/2023,PER0330986,62.84,N,,N,N
Pendle Borough Council,Human Resources,Indirect Employee Expenses,Emp : Medical Expenses,1236,PEOPLE ASSET MANAGEMENT LIMITED,A0067613,26/01/2023,PER0331166,62.84,N,,N,N
Pendle Borough Council,Operational Services,Transport Related Expense,Tprt : Repairs : General,3105,PROBRUSH T/A NORTHERN MUNICIPAL SPARES LTD,A0068263,19/01/2023,OPS0331019,244,N,,N,N
Pendle Borough Council,Operational Services,Transport Related Expense,Tprt : Repairs : General,3105,PROBRUSH T/A NORTHERN MUNICIPAL SPARES LTD,A0068263,19/01/2023,OPS0331019,244,N,,N,N
Pendle Borough Council,Operational Services,Transport Related Expense,Tprt : Repairs : General,3105,PROBRUSH T/A NORTHERN MUNICIPAL SPARES LTD,A0068263,19/01/2023,OPS0331019,244,N,,N,N
Pendle Borough Council,Operational Services,Transport Related Expense,Tprt : Repairs : General,3105,PROBRUSH T/A NORTHERN MUNICIPAL SPARES LTD,A0068263,19/01/2023,OPS0331019,244,N,,N,N
Pendle Borough Council,Operational Services,Transport Related Expense,Tprt : Repairs : General,3105,PROBRUSH T/A NORTHERN MUNICIPAL SPARES LTD,A0068263,19/01/2023,OPS0331019,244,N,,N,N
Pendle Borough Council,Operational Services,Transport Related Expense,Tprt : Repairs : General,3105,PROBRUSH T/A NORTHERN MUNICIPAL SPARES LTD,A0068263,19/01/2023,OPS0331019,243.98,N,,N,N
Pendle Borough Council,Engineering & Special Projects,Supplies and Services,Processing Fees,4424,CHIPSIDE LTD,A0068587,12/01/2023,HED0330887,8.75,N,,N,N
Pendle Borough Council,Engineering & Special Projects,Supplies and Services,Processing Fees,4424,CHIPSIDE LTD,A0068587,05/01/2023,HED0330685,13.29,N,,N,N
Pendle Borough Council,Engineering & Special Projects,Supplies and Services,Processing Fees,4424,CHIPSIDE LTD,A0068587,19/01/2023,HED0331029,75.9,N,,N,N
Pendle Borough Council,Engineering & Special Projects,Supplies and Services,Processing Fees,4424,CHIPSIDE LTD,A0068587,05/01/2023,HED0330688,145.53,N,,N,N
Pendle Borough Council,Engineering & Special Projects,Supplies and Services,Processing Fees,4424,CHIPSIDE LTD,A0068587,19/01/2023,HED0330999,318.13,N,,N,N
Pendle Borough Council,Engineering & Special Projects,Supplies and Services,Other Expenses,4705,ACCENT REGENERATION LIMITED,A0069320,12/01/2023,HED0330867,167.88,N,,N,N
Pendle Borough Council,Engineering & Special Projects,Supplies and Services,Other Expenses,4705,ACCENT REGENERATION LIMITED,A0069320,05/01/2023,HED0330723,363.74,N,,N,N
Pendle Borough Council,Operational Services,Supplies and Services,Seminars etc All Costs,4601,R B ASBESTOS CONSULTANTS LIMITED,A0070946,12/01/2023,OPS0330782,250,N,,N,N
Pendle Borough Council,Engineering & Special Projects,Premises Related Expense,Grounds : R & M : Day to Day : Routine,2101,GO VELO LIMITED,A0072191,12/01/2023,HED0330951,1092.66,N,,N,N
Pendle Borough Council,Engineering & Special Projects,Capital Costs,Capital : Payments,CD14,GO VELO LIMITED,A0072191,12/01/2023,HED0330951,1239,N,,N,N
Pendle Borough Council,Engineering & Special Projects,Supplies and Services,Private Water Supply Expenditure,4425,UNITED UTILITIES WATER PLC,A0072400,05/01/2023,HED0330699,246,N,,N,N
Pendle Borough Council,Operational Services,Supplies and Services,Sub-Contractors,4007,RENTOKIL INITIAL UK LIMITED,A0072816,19/01/2023,OPS0331025,92.84,N,,N,N
Pendle Borough Council,Operational Services,Supplies and Services,Sub-Contractors,4007,RENTOKIL INITIAL UK LIMITED,A0072816,19/01/2023,OPS0331026,282.42,N,,N,N
Pendle Borough Council,Operational Services,Supplies and Services,Sub-Contractors,4007,RENTOKIL INITIAL UK LIMITED,A0072816,19/01/2023,OPS0331025,15.9,N,,N,N
Pendle Borough Council,Engineering & Special Projects,Supplies and Services,Other Expenses,4705,WHITE RIBBON CAMPAIGN LIMITED,A0074346,19/01/2023,HED0331049,188,N,,N,N
Pendle Borough Council,Financial Services,Supplies and Services,Subscriptions & Donations,4706,VODAFONE LIMITED,A0076999,26/01/2023,AAS0331229,1057.89,N,,N,N
Pendle Borough Council,Property Services,Premises Related Expense,Bldgs : R & M : Day To Day,2001,BURNLEY AND PENDLE ENERGY ASSESSORS LTD,A0077075,26/01/2023,EST0331195,150,N,,N,N
Pendle Borough Council,Property Services,Supplies and Services,Other Expenses,4705,BURNLEY AND PENDLE ENERGY ASSESSORS LTD,A0077075,19/01/2023,EST0331116,175,N,,N,N
Pendle Borough Council,Engineering & Special Projects,Supplies and Services,Printing & Stationery,4301,THOMSON REUTERS PROFESSIONAL UK LIMITED,A0077400,26/01/2023,HED0331181,1099,N,,N,N
Pendle Borough Council,Planning & Building Control,,Other Income : Non-VATable,9303,DIAMOND PEOPLE LIMITED,A0077714,05/01/2023,PBC0330629,300,N,,N,N
Pendle Borough Council,Planning & Building Control,,Other Income : Non-VATable,9303,REDACT - PERSONAL DATA,A0079888,26/01/2023,PBC0331152,49.87,N,,N,N
Pendle Borough Council,Engineering & Special Projects,Supplies and Services,Consultants Fees,4401,IN-SITU,A0079936,12/01/2023,HED0330900,12883.84,N,,N,N
Pendle Borough Council,Engineering & Special Projects,Supplies and Services,Other Expenses,4705,GOLDSHAW BOOTH PARISH COUNCIL,A0080533,19/01/2023,HED0331093,3090,N,,N,N
Pendle Borough Council,Engineering & Special Projects,Supplies and Services,Other Expenses,4705,POSITIVE ACTION IN THE COMMUNITY,A0081553,12/01/2023,HED0330884,2520,N,1088536,N,N
Pendle Borough Council,Engineering & Special Projects,Supplies and Services,Children`s holiday activities,4716,POSITIVE ACTION IN THE COMMUNITY,A0081553,05/01/2023,HED0330669,1300,N,1088536,N,N
Pendle Borough Council,Engineering & Special Projects,Supplies and Services,Other Expenses,4705,CALICO ENTERPRISE,A0082574,05/01/2023,HED0330712,95,N,,N,N
Pendle Borough Council,Planning & Building Control,Supplies and Services,Other Expenses,4705,ABOUT COFFEE,A0083391,12/01/2023,PBC0330880,1821,N,,N,N
Pendle Borough Council,Financial Services,Supplies and Services,Allpay,4422,ALLPAY LIMITED,A0084372,05/01/2023,AAS0330767,10,N,,N,N
Pendle Borough Council,Financial Services,Supplies and Services,Allpay,4422,ALLPAY LIMITED,A0084372,05/01/2023,AAS0330768,10,N,,N,N
Pendle Borough Council,Financial Services,Supplies and Services,Allpay,4422,ALLPAY LIMITED,A0084372,05/01/2023,AAS0330766,21.12,N,,N,N
Pendle Borough Council,Financial Services,Supplies and Services,Allpay,4422,ALLPAY LIMITED,A0084372,05/01/2023,AAS0330769,22.7,N,,N,N
Pendle Borough Council,Financial Services,Supplies and Services,Allpay,4422,ALLPAY LIMITED,A0084372,05/01/2023,AAS0330771,52.25,N,,N,N
Pendle Borough Council,Financial Services,Supplies and Services,Allpay,4422,ALLPAY LIMITED,A0084372,05/01/2023,AAS0330770,1805.49,N,,N,N
Pendle Borough Council,Engineering & Special Projects,,Housing Impts/Cap Repairs,0104,ELITE PLUMBING,A0084584,05/01/2023,HED0330705,380,N,,N,N
Pendle Borough Council,Engineering & Special Projects,,Housing Impts/Cap Repairs,0104,ELITE PLUMBING,A0084584,05/01/2023,HED0330706,506,N,,N,N
Pendle Borough Council,Engineering & Special Projects,,Housing Impts/Cap Repairs,0104,ELITE PLUMBING,A0084584,05/01/2023,HED0330707,530,N,,N,N
Pendle Borough Council,Engineering & Special Projects,,Housing Impts/Cap Repairs,0104,ELITE PLUMBING,A0084584,05/01/2023,HED0330682,1669.86,N,,N,N
Pendle Borough Council,Engineering & Special Projects,,Housing Impts/Cap Repairs,0104,ELITE PLUMBING,A0084584,26/01/2023,HED0331157,1669.86,N,,N,N
Pendle Borough Council,Engineering & Special Projects,,Housing Impts/Cap Repairs,0104,ELITE PLUMBING,A0084584,05/01/2023,HED0330683,1728.62,N,,N,N
Pendle Borough Council,Engineering & Special Projects,,Housing Impts/Cap Repairs,0104,ELITE PLUMBING,A0084584,26/01/2023,HED0331158,2034.46,N,,N,N
Pendle Borough Council,Engineering & Special Projects,,Housing Impts/Cap Repairs,0104,ELITE PLUMBING,A0084584,19/01/2023,HED0330972,2045,N,,N,N
Pendle Borough Council,Engineering & Special Projects,,Housing Impts/Cap Repairs,0104,ELITE PLUMBING,A0084584,26/01/2023,HED0331160,4578.26,N,,N,N
Pendle Borough Council,Engineering & Special Projects,Premises Related Expense,Bldgs : R & M : Abnormal,2002,ELITE PLUMBING,A0084584,05/01/2023,HED0330700,50,N,,N,N
Pendle Borough Council,Engineering & Special Projects,Capital Costs,Ren Grant : 1996 Act,CH22,ELITE PLUMBING,A0084584,05/01/2023,HED0330701,5651,N,,N,N
Pendle Borough Council,Engineering & Special Projects,Capital Costs,Ren Grant : 1996 Act,CH22,ELITE PLUMBING,A0084584,26/01/2023,HED0331159,8052.2,N,,N,N
Pendle Borough Council,Engineering & Special Projects,Supplies and Services,Other Expenses,4705,REDACT - PERSONAL DATA,A0085472,05/01/2023,HED0330662,737.62,N,,N,N
Pendle Borough Council,Engineering & Special Projects,Premises Related Expense,Grounds : R & M : Day to Day : Routine,2101,KEVIN WILKINSON LANDSCAPES LTD,A0085660,12/01/2023,HED0330949,100,N,,N,N
Pendle Borough Council,Engineering & Special Projects,Capital Costs,Capital : Payments,CD14,MARCHBRIDGE BUILDERS LIMITED,A0087284,26/01/2023,HED0331209,15124.45,N,,N,N
Pendle Borough Council,Engineering & Special Projects,Capital Costs,Capital : Payments,CD14,MARCHBRIDGE BUILDERS LIMITED,A0087284,26/01/2023,HED0331208,19047.69,N,,N,N
Pendle Borough Council,Human Resources,Supplies and Services,Seminars etc All Costs,4601,P THRELFALL SAFEGUARDING LTD,A0087391,12/01/2023,PER0330871,500,N,,N,N
Pendle Borough Council,Operational Services,Transport Related Expense,Tprt : Repairs : General,3105,REDACT - PERSONAL DATA,A0087629,05/01/2023,OPS0330287,245,N,,N,N
Pendle Borough Council,Financial Services,Supplies and Services,Subscriptions & Donations,4706,INFORM CPI LIMITED,A0089895,12/01/2023,AAS0330955,27,N,,N,N
Pendle Borough Council,Financial Services,Supplies and Services,Subscriptions & Donations,4706,INFORM CPI LIMITED,A0089895,05/01/2023,AAS0330773,306,N,,N,N
Pendle Borough Council,Engineering & Special Projects,Supplies and Services,Other Expenses,4705,O`CALLAGHAN LIMITED,A0090052,05/01/2023,HED0330762,4914.47,N,,N,N
Pendle Borough Council,Engineering & Special Projects,Supplies and Services,Publicity & advertisement,4704,WE LOVE CREATIVE LIMITED,A0090098,12/01/2023,HED0330816,400,N,,N,N
Pendle Borough Council,Engineering & Special Projects,Premises Related Expense,Grounds : R & M : Day to Day : Routine,2101,ROBINSON & LAWLOR LIMITED,A0090107,05/01/2023,HED0330761,74,N,,N,N
Pendle Borough Council,Parks & Recreation Services,Premises Related Expense,Grounds : R & M : Day to Day : Routine,2101,LANDSCAPE SUPPLY COMPANY,A0090209,19/01/2023,PCO0331042,158.69,N,,N,N
Pendle Borough Council,Financial Services,Transport Related Expense,Diesel Oil,3202,FUELMATE LTD,A0090265,31/01/2023,AAS0331340,69.19,N,,N,N
Pendle Borough Council,Financial Services,Transport Related Expense,Diesel Oil,3202,FUELMATE LTD,A0090265,03/01/2023,AAS0331336,96.46,N,,N,N
Pendle Borough Council,Financial Services,Transport Related Expense,Diesel Oil,3202,FUELMATE LTD,A0090265,18/01/2023,AAS0331338,219.14,N,,N,N
Pendle Borough Council,Financial Services,Transport Related Expense,Diesel Oil,3202,FUELMATE LTD,A0090265,31/01/2023,AAS0331340,227.76,N,,N,N
Pendle Borough Council,Financial Services,Transport Related Expense,Diesel Oil,3202,FUELMATE LTD,A0090265,24/01/2023,AAS0331339,237.39,N,,N,N
Pendle Borough Council,Financial Services,Transport Related Expense,Diesel Oil,3202,FUELMATE LTD,A0090265,10/01/2023,AAS0331337,258.04,N,,N,N
Pendle Borough Council,Financial Services,Transport Related Expense,Diesel Oil,3202,FUELMATE LTD,A0090265,18/01/2023,AAS0331338,182.96,N,,N,N
Pendle Borough Council,Financial Services,Transport Related Expense,Diesel Oil,3202,FUELMATE LTD,A0090265,24/01/2023,AAS0331339,304.05,N,,N,N
Pendle Borough Council,Financial Services,Transport Related Expense,Diesel Oil,3202,FUELMATE LTD,A0090265,31/01/2023,AAS0331340,366.55,N,,N,N
Pendle Borough Council,Financial Services,Transport Related Expense,Diesel Oil,3202,FUELMATE LTD,A0090265,10/01/2023,AAS0331337,402.04,N,,N,N
Pendle Borough Council,Financial Services,Transport Related Expense,Diesel Oil,3202,FUELMATE LTD,A0090265,03/01/2023,AAS0331336,419.23,N,,N,N
Pendle Borough Council,Financial Services,Transport Related Expense,Diesel Oil,3202,FUELMATE LTD,A0090265,18/01/2023,AAS0331338,265.2,N,,N,N
Pendle Borough Council,Financial Services,Transport Related Expense,Diesel Oil,3202,FUELMATE LTD,A0090265,24/01/2023,AAS0331339,338.8,N,,N,N
Pendle Borough Council,Financial Services,Transport Related Expense,Diesel Oil,3202,FUELMATE LTD,A0090265,03/01/2023,AAS0331336,354.34,N,,N,N
Pendle Borough Council,Financial Services,Transport Related Expense,Diesel Oil,3202,FUELMATE LTD,A0090265,31/01/2023,AAS0331340,379.13,N,,N,N
Pendle Borough Council,Financial Services,Transport Related Expense,Diesel Oil,3202,FUELMATE LTD,A0090265,10/01/2023,AAS0331337,388.54,N,,N,N
Pendle Borough Council,Financial Services,Transport Related Expense,Diesel Oil,3202,FUELMATE LTD,A0090265,10/01/2023,AAS0331337,238.01,N,,N,N
Pendle Borough Council,Financial Services,Transport Related Expense,Diesel Oil,3202,FUELMATE LTD,A0090265,18/01/2023,AAS0331338,262.85,N,,N,N
Pendle Borough Council,Financial Services,Transport Related Expense,Diesel Oil,3202,FUELMATE LTD,A0090265,24/01/2023,AAS0331339,303.79,N,,N,N
Pendle Borough Council,Financial Services,Transport Related Expense,Diesel Oil,3202,FUELMATE LTD,A0090265,31/01/2023,AAS0331340,414.43,N,,N,N
Pendle Borough Council,Financial Services,Transport Related Expense,Diesel Oil,3202,FUELMATE LTD,A0090265,03/01/2023,AAS0331336,435.31,N,,N,N
Pendle Borough Council,Financial Services,Transport Related Expense,Diesel Oil,3202,FUELMATE LTD,A0090265,10/01/2023,AAS0331337,199.35,N,,N,N
Pendle Borough Council,Financial Services,Transport Related Expense,Diesel Oil,3202,FUELMATE LTD,A0090265,24/01/2023,AAS0331339,280.4,N,,N,N
Pendle Borough Council,Financial Services,Transport Related Expense,Diesel Oil,3202,FUELMATE LTD,A0090265,18/01/2023,AAS0331338,308.2,N,,N,N
Pendle Borough Council,Financial Services,Transport Related Expense,Diesel Oil,3202,FUELMATE LTD,A0090265,03/01/2023,AAS0331336,362.63,N,,N,N
Pendle Borough Council,Financial Services,Transport Related Expense,Diesel Oil,3202,FUELMATE LTD,A0090265,31/01/2023,AAS0331340,365.23,N,,N,N
Pendle Borough Council,Financial Services,Transport Related Expense,Diesel Oil,3202,FUELMATE LTD,A0090265,10/01/2023,AAS0331337,205.76,N,,N,N
Pendle Borough Council,Financial Services,Transport Related Expense,Diesel Oil,3202,FUELMATE LTD,A0090265,18/01/2023,AAS0331338,254.44,N,,N,N
Pendle Borough Council,Financial Services,Transport Related Expense,Diesel Oil,3202,FUELMATE LTD,A0090265,31/01/2023,AAS0331340,294.19,N,,N,N
Pendle Borough Council,Financial Services,Transport Related Expense,Diesel Oil,3202,FUELMATE LTD,A0090265,24/01/2023,AAS0331339,342.1,N,,N,N
Pendle Borough Council,Financial Services,Transport Related Expense,Diesel Oil,3202,FUELMATE LTD,A0090265,03/01/2023,AAS0331336,363.02,N,,N,N
Pendle Borough Council,Financial Services,Transport Related Expense,Diesel Oil,3202,FUELMATE LTD,A0090265,24/01/2023,AAS0331339,122.8,N,,N,N
Pendle Borough Council,Financial Services,Transport Related Expense,Diesel Oil,3202,FUELMATE LTD,A0090265,18/01/2023,AAS0331338,167.82,N,,N,N
Pendle Borough Council,Financial Services,Transport Related Expense,Diesel Oil,3202,FUELMATE LTD,A0090265,10/01/2023,AAS0331337,266.67,N,,N,N
Pendle Borough Council,Financial Services,Transport Related Expense,Diesel Oil,3202,FUELMATE LTD,A0090265,03/01/2023,AAS0331336,289.56,N,,N,N
Pendle Borough Council,Financial Services,Transport Related Expense,Diesel Oil,3202,FUELMATE LTD,A0090265,31/01/2023,AAS0331340,367.67,N,,N,N
Pendle Borough Council,Financial Services,Transport Related Expense,Diesel Oil,3202,FUELMATE LTD,A0090265,24/01/2023,AAS0331339,112.45,N,,N,N
Pendle Borough Council,Financial Services,Transport Related Expense,Diesel Oil,3202,FUELMATE LTD,A0090265,31/01/2023,AAS0331340,119.56,N,,N,N
Pendle Borough Council,Financial Services,Transport Related Expense,Diesel Oil,3202,FUELMATE LTD,A0090265,03/01/2023,AAS0331336,285.87,N,,N,N
Pendle Borough Council,Financial Services,Transport Related Expense,Diesel Oil,3202,FUELMATE LTD,A0090265,18/01/2023,AAS0331338,184.24,N,,N,N
Pendle Borough Council,Financial Services,Transport Related Expense,Diesel Oil,3202,FUELMATE LTD,A0090265,03/01/2023,AAS0331336,251.15,N,,N,N
Pendle Borough Council,Financial Services,Transport Related Expense,Diesel Oil,3202,FUELMATE LTD,A0090265,24/01/2023,AAS0331339,259.62,N,,N,N
Pendle Borough Council,Financial Services,Transport Related Expense,Diesel Oil,3202,FUELMATE LTD,A0090265,31/01/2023,AAS0331340,357.17,N,,N,N
Pendle Borough Council,Financial Services,Transport Related Expense,Diesel Oil,3202,FUELMATE LTD,A0090265,10/01/2023,AAS0331337,402.9,N,,N,N
Pendle Borough Council,Financial Services,Transport Related Expense,Diesel Oil,3202,FUELMATE LTD,A0090265,18/01/2023,AAS0331338,130.52,N,,N,N
Pendle Borough Council,Financial Services,Transport Related Expense,Diesel Oil,3202,FUELMATE LTD,A0090265,03/01/2023,AAS0331336,157.87,N,,N,N
Pendle Borough Council,Financial Services,Transport Related Expense,Diesel Oil,3202,FUELMATE LTD,A0090265,24/01/2023,AAS0331339,200.85,N,,N,N
Pendle Borough Council,Financial Services,Transport Related Expense,Diesel Oil,3202,FUELMATE LTD,A0090265,31/01/2023,AAS0331340,202.72,N,,N,N
Pendle Borough Council,Financial Services,Transport Related Expense,Diesel Oil,3202,FUELMATE LTD,A0090265,10/01/2023,AAS0331337,277.47,N,,N,N
Pendle Borough Council,Financial Services,Transport Related Expense,Diesel Oil,3202,FUELMATE LTD,A0090265,31/01/2023,AAS0331340,119.68,N,,N,N
Pendle Borough Council,Financial Services,Transport Related Expense,Diesel Oil,3202,FUELMATE LTD,A0090265,24/01/2023,AAS0331339,125.08,N,,N,N
Pendle Borough Council,Financial Services,Transport Related Expense,Diesel Oil,3202,FUELMATE LTD,A0090265,03/01/2023,AAS0331336,134.56,N,,N,N
Pendle Borough Council,Financial Services,Transport Related Expense,Diesel Oil,3202,FUELMATE LTD,A0090265,03/01/2023,AAS0331336,128.53,N,,N,N
Pendle Borough Council,Financial Services,Transport Related Expense,Diesel Oil,3202,FUELMATE LTD,A0090265,31/01/2023,AAS0331340,133.87,N,,N,N
Pendle Borough Council,Financial Services,Transport Related Expense,Diesel Oil,3202,FUELMATE LTD,A0090265,18/01/2023,AAS0331338,239.81,N,,N,N
Pendle Borough Council,Financial Services,Transport Related Expense,Diesel Oil,3202,FUELMATE LTD,A0090265,24/01/2023,AAS0331339,260.03,N,,N,N
Pendle Borough Council,Financial Services,Transport Related Expense,Diesel Oil,3202,FUELMATE LTD,A0090265,31/01/2023,AAS0331340,364.43,N,,N,N
Pendle Borough Council,Financial Services,Transport Related Expense,Diesel Oil,3202,FUELMATE LTD,A0090265,31/01/2023,AAS0331340,74.73,N,,N,N
Pendle Borough Council,Financial Services,Transport Related Expense,Diesel Oil,3202,FUELMATE LTD,A0090265,18/01/2023,AAS0331338,205.04,N,,N,N
Pendle Borough Council,Financial Services,Transport Related Expense,Diesel Oil,3202,FUELMATE LTD,A0090265,24/01/2023,AAS0331339,244.43,N,,N,N
Pendle Borough Council,Financial Services,Transport Related Expense,Diesel Oil,3202,FUELMATE LTD,A0090265,03/01/2023,AAS0331336,259.41,N,,N,N
Pendle Borough Council,Financial Services,Transport Related Expense,Diesel Oil,3202,FUELMATE LTD,A0090265,10/01/2023,AAS0331337,276.35,N,,N,N
Pendle Borough Council,Financial Services,Transport Related Expense,Diesel Oil,3202,FUELMATE LTD,A0090265,03/01/2023,AAS0331336,172.4,N,,N,N
Pendle Borough Council,Financial Services,Transport Related Expense,Diesel Oil,3202,FUELMATE LTD,A0090265,18/01/2023,AAS0331338,210.64,N,,N,N
Pendle Borough Council,Financial Services,Transport Related Expense,Diesel Oil,3202,FUELMATE LTD,A0090265,31/01/2023,AAS0331340,213.16,N,,N,N
Pendle Borough Council,Financial Services,Transport Related Expense,Diesel Oil,3202,FUELMATE LTD,A0090265,10/01/2023,AAS0331337,217.03,N,,N,N
Pendle Borough Council,Financial Services,Transport Related Expense,Diesel Oil,3202,FUELMATE LTD,A0090265,24/01/2023,AAS0331339,268.04,N,,N,N
Pendle Borough Council,Financial Services,Transport Related Expense,Diesel Oil,3202,FUELMATE LTD,A0090265,03/01/2023,AAS0331336,90.64,N,,N,N
Pendle Borough Council,Financial Services,Transport Related Expense,Diesel Oil,3202,FUELMATE LTD,A0090265,18/01/2023,AAS0331338,93.46,N,,N,N
Pendle Borough Council,Financial Services,Transport Related Expense,Diesel Oil,3202,FUELMATE LTD,A0090265,24/01/2023,AAS0331339,100.45,N,,N,N
Pendle Borough Council,Financial Services,Transport Related Expense,Diesel Oil,3202,FUELMATE LTD,A0090265,10/01/2023,AAS0331337,114.91,N,,N,N
Pendle Borough Council,Financial Services,Transport Related Expense,Diesel Oil,3202,FUELMATE LTD,A0090265,31/01/2023,AAS0331340,167.12,N,,N,N
Pendle Borough Council,Financial Services,Transport Related Expense,Diesel Oil,3202,FUELMATE LTD,A0090265,24/01/2023,AAS0331339,256.29,N,,N,N
Pendle Borough Council,Financial Services,Transport Related Expense,Diesel Oil,3202,FUELMATE LTD,A0090265,18/01/2023,AAS0331338,380.56,N,,N,N
Pendle Borough Council,Financial Services,Transport Related Expense,Diesel Oil,3202,FUELMATE LTD,A0090265,10/01/2023,AAS0331337,395.28,N,,N,N
Pendle Borough Council,Financial Services,Transport Related Expense,Diesel Oil,3202,FUELMATE LTD,A0090265,31/01/2023,AAS0331340,431.28,N,,N,N
Pendle Borough Council,Financial Services,Transport Related Expense,Diesel Oil,3202,FUELMATE LTD,A0090265,03/01/2023,AAS0331336,495.67,N,,N,N
Pendle Borough Council,Financial Services,Transport Related Expense,Diesel Oil,3202,FUELMATE LTD,A0090265,10/01/2023,AAS0331337,60.26,N,,N,N
Pendle Borough Council,Financial Services,Transport Related Expense,Diesel Oil,3202,FUELMATE LTD,A0090265,24/01/2023,AAS0331339,158.05,N,,N,N
Pendle Borough Council,Financial Services,Transport Related Expense,Diesel Oil,3202,FUELMATE LTD,A0090265,18/01/2023,AAS0331338,190.72,N,,N,N
Pendle Borough Council,Financial Services,Transport Related Expense,Diesel Oil,3202,FUELMATE LTD,A0090265,03/01/2023,AAS0331336,215.19,N,,N,N
Pendle Borough Council,Financial Services,Transport Related Expense,Diesel Oil,3202,FUELMATE LTD,A0090265,31/01/2023,AAS0331340,242.53,N,,N,N
Pendle Borough Council,Financial Services,Transport Related Expense,Diesel Oil,3202,FUELMATE LTD,A0090265,10/01/2023,AAS0331337,41.53,N,,N,N
Pendle Borough Council,Financial Services,Transport Related Expense,Diesel Oil,3202,FUELMATE LTD,A0090265,18/01/2023,AAS0331338,175.59,N,,N,N
Pendle Borough Council,Financial Services,Transport Related Expense,Diesel Oil,3202,FUELMATE LTD,A0090265,24/01/2023,AAS0331339,176.1,N,,N,N
Pendle Borough Council,Financial Services,Transport Related Expense,Diesel Oil,3202,FUELMATE LTD,A0090265,03/01/2023,AAS0331336,223.06,N,,N,N
Pendle Borough Council,Financial Services,Transport Related Expense,Diesel Oil,3202,FUELMATE LTD,A0090265,31/01/2023,AAS0331340,293.62,N,,N,N
Pendle Borough Council,Financial Services,Transport Related Expense,Diesel Oil,3202,FUELMATE LTD,A0090265,10/01/2023,AAS0331337,95.6,N,,N,N
Pendle Borough Council,Financial Services,Transport Related Expense,Diesel Oil,3202,FUELMATE LTD,A0090265,24/01/2023,AAS0331339,145.79,N,,N,N
Pendle Borough Council,Financial Services,Transport Related Expense,Diesel Oil,3202,FUELMATE LTD,A0090265,03/01/2023,AAS0331336,187.75,N,,N,N
Pendle Borough Council,Financial Services,Transport Related Expense,Diesel Oil,3202,FUELMATE LTD,A0090265,31/01/2023,AAS0331340,198.78,N,,N,N
Pendle Borough Council,Financial Services,Transport Related Expense,Diesel Oil,3202,FUELMATE LTD,A0090265,18/01/2023,AAS0331338,204.25,N,,N,N
Pendle Borough Council,Financial Services,Transport Related Expense,Diesel Oil,3202,FUELMATE LTD,A0090265,10/01/2023,AAS0331337,53.93,N,,N,N
Pendle Borough Council,Financial Services,Transport Related Expense,Diesel Oil,3202,FUELMATE LTD,A0090265,24/01/2023,AAS0331339,155.63,N,,N,N
Pendle Borough Council,Financial Services,Transport Related Expense,Diesel Oil,3202,FUELMATE LTD,A0090265,18/01/2023,AAS0331338,157.7,N,,N,N
Pendle Borough Council,Financial Services,Transport Related Expense,Diesel Oil,3202,FUELMATE LTD,A0090265,31/01/2023,AAS0331340,226.59,N,,N,N
Pendle Borough Council,Financial Services,Transport Related Expense,Diesel Oil,3202,FUELMATE LTD,A0090265,03/01/2023,AAS0331336,239.71,N,,N,N
Pendle Borough Council,Financial Services,Transport Related Expense,Diesel Oil,3202,FUELMATE LTD,A0090265,31/01/2023,AAS0331340,55.53,N,,N,N
Pendle Borough Council,Financial Services,Transport Related Expense,Diesel Oil,3202,FUELMATE LTD,A0090265,18/01/2023,AAS0331338,66.67,N,,N,N
Pendle Borough Council,Financial Services,Transport Related Expense,Diesel Oil,3202,FUELMATE LTD,A0090265,03/01/2023,AAS0331336,56.56,N,,N,N
Pendle Borough Council,Financial Services,Transport Related Expense,Diesel Oil,3202,FUELMATE LTD,A0090265,10/01/2023,AAS0331337,73.57,N,,N,N
Pendle Borough Council,Financial Services,Transport Related Expense,Diesel Oil,3202,FUELMATE LTD,A0090265,03/01/2023,AAS0331336,101.18,N,,N,N
Pendle Borough Council,Financial Services,Transport Related Expense,Diesel Oil,3202,FUELMATE LTD,A0090265,31/01/2023,AAS0331340,104.17,N,,N,N
Pendle Borough Council,Financial Services,Transport Related Expense,Diesel Oil,3202,FUELMATE LTD,A0090265,10/01/2023,AAS0331337,49.21,N,,N,N
Pendle Borough Council,Financial Services,Transport Related Expense,Diesel Oil,3202,FUELMATE LTD,A0090265,03/01/2023,AAS0331336,58.52,N,,N,N
Pendle Borough Council,Financial Services,Transport Related Expense,Diesel Oil,3202,FUELMATE LTD,A0090265,31/01/2023,AAS0331340,68.23,N,,N,N
Pendle Borough Council,Financial Services,Transport Related Expense,Diesel Oil,3202,FUELMATE LTD,A0090265,10/01/2023,AAS0331337,57.38,N,,N,N
Pendle Borough Council,Financial Services,Transport Related Expense,Diesel Oil,3202,FUELMATE LTD,A0090265,24/01/2023,AAS0331339,73.79,N,,N,N
Pendle Borough Council,Financial Services,Transport Related Expense,Diesel Oil,3202,FUELMATE LTD,A0090265,31/01/2023,AAS0331340,52.33,N,,N,N
Pendle Borough Council,Financial Services,Transport Related Expense,Diesel Oil,3202,FUELMATE LTD,A0090265,03/01/2023,AAS0331336,70.13,N,,N,N
Pendle Borough Council,Financial Services,Transport Related Expense,Diesel Oil,3202,FUELMATE LTD,A0090265,24/01/2023,AAS0331339,72.17,N,,N,N
Pendle Borough Council,Financial Services,Transport Related Expense,Diesel Oil,3202,FUELMATE LTD,A0090265,10/01/2023,AAS0331337,139.2,N,,N,N
Pendle Borough Council,Financial Services,Transport Related Expense,Diesel Oil,3202,FUELMATE LTD,A0090265,10/01/2023,AAS0331337,84.52,N,,N,N
Pendle Borough Council,Financial Services,Transport Related Expense,Diesel Oil,3202,FUELMATE LTD,A0090265,18/01/2023,AAS0331338,99.4,N,,N,N
Pendle Borough Council,Financial Services,Transport Related Expense,Diesel Oil,3202,FUELMATE LTD,A0090265,31/01/2023,AAS0331340,103.93,N,,N,N
Pendle Borough Council,Financial Services,Transport Related Expense,Diesel Oil,3202,FUELMATE LTD,A0090265,03/01/2023,AAS0331336,106.75,N,,N,N
Pendle Borough Council,Financial Services,Transport Related Expense,Diesel Oil,3202,FUELMATE LTD,A0090265,24/01/2023,AAS0331339,109.28,N,,N,N
Pendle Borough Council,Financial Services,Transport Related Expense,Diesel Oil,3202,FUELMATE LTD,A0090265,03/01/2023,AAS0331336,41.72,N,,N,N
Pendle Borough Council,Financial Services,Transport Related Expense,Diesel Oil,3202,FUELMATE LTD,A0090265,24/01/2023,AAS0331339,64.2,N,,N,N
Pendle Borough Council,Financial Services,Transport Related Expense,Diesel Oil,3202,FUELMATE LTD,A0090265,31/01/2023,AAS0331340,87.05,N,,N,N
Pendle Borough Council,Financial Services,Transport Related Expense,Diesel Oil,3202,FUELMATE LTD,A0090265,10/01/2023,AAS0331337,108.76,N,,N,N
Pendle Borough Council,Financial Services,Transport Related Expense,Diesel Oil,3202,FUELMATE LTD,A0090265,18/01/2023,AAS0331338,46.45,N,,N,N
Pendle Borough Council,Financial Services,Transport Related Expense,Diesel Oil,3202,FUELMATE LTD,A0090265,24/01/2023,AAS0331339,72.07,N,,N,N
Pendle Borough Council,Financial Services,Transport Related Expense,Diesel Oil,3202,FUELMATE LTD,A0090265,10/01/2023,AAS0331337,87.4,N,,N,N
Pendle Borough Council,Financial Services,Transport Related Expense,Diesel Oil,3202,FUELMATE LTD,A0090265,31/01/2023,AAS0331340,95.53,N,,N,N
Pendle Borough Council,Financial Services,Transport Related Expense,Diesel Oil,3202,FUELMATE LTD,A0090265,03/01/2023,AAS0331336,97.47,N,,N,N
Pendle Borough Council,Financial Services,Transport Related Expense,Diesel Oil,3202,FUELMATE LTD,A0090265,18/01/2023,AAS0331338,53.72,N,,N,N
Pendle Borough Council,Financial Services,Transport Related Expense,Diesel Oil,3202,FUELMATE LTD,A0090265,31/01/2023,AAS0331340,57.42,N,,N,N
Pendle Borough Council,Financial Services,Transport Related Expense,Diesel Oil,3202,FUELMATE LTD,A0090265,24/01/2023,AAS0331339,62.22,N,,N,N
Pendle Borough Council,Financial Services,Transport Related Expense,Diesel Oil,3202,FUELMATE LTD,A0090265,03/01/2023,AAS0331336,71.96,N,,N,N
Pendle Borough Council,Financial Services,Transport Related Expense,Diesel Oil,3202,FUELMATE LTD,A0090265,10/01/2023,AAS0331337,122.07,N,,N,N
Pendle Borough Council,Financial Services,Transport Related Expense,Diesel Oil,3202,FUELMATE LTD,A0090265,10/01/2023,AAS0331337,68.82,N,,N,N
Pendle Borough Council,Financial Services,Transport Related Expense,Diesel Oil,3202,FUELMATE LTD,A0090265,18/01/2023,AAS0331338,70.19,N,,N,N
Pendle Borough Council,Financial Services,Transport Related Expense,Diesel Oil,3202,FUELMATE LTD,A0090265,03/01/2023,AAS0331336,71.97,N,,N,N
Pendle Borough Council,Financial Services,Transport Related Expense,Diesel Oil,3202,FUELMATE LTD,A0090265,24/01/2023,AAS0331339,72.45,N,,N,N
Pendle Borough Council,Financial Services,Transport Related Expense,Diesel Oil,3202,FUELMATE LTD,A0090265,31/01/2023,AAS0331340,75.41,N,,N,N
Pendle Borough Council,Financial Services,Transport Related Expense,Diesel Oil,3202,FUELMATE LTD,A0090265,10/01/2023,AAS0331337,48.07,N,,N,N
Pendle Borough Council,Financial Services,Transport Related Expense,Diesel Oil,3202,FUELMATE LTD,A0090265,10/01/2023,AAS0331337,51.36,N,,N,N
Pendle Borough Council,Financial Services,Transport Related Expense,Diesel Oil,3202,FUELMATE LTD,A0090265,03/01/2023,AAS0331336,56.56,N,,N,N
Pendle Borough Council,Financial Services,Transport Related Expense,Diesel Oil,3202,FUELMATE LTD,A0090265,18/01/2023,AAS0331338,43.88,N,,N,N
Pendle Borough Council,Financial Services,Transport Related Expense,Diesel Oil,3202,FUELMATE LTD,A0090265,18/01/2023,AAS0331338,45.38,N,,N,N
Pendle Borough Council,Financial Services,Transport Related Expense,Diesel Oil,3202,FUELMATE LTD,A0090265,03/01/2023,AAS0331336,47.73,N,,N,N
Pendle Borough Council,Financial Services,Transport Related Expense,Diesel Oil,3202,FUELMATE LTD,A0090265,31/01/2023,AAS0331340,29.68,N,,N,N
Pendle Borough Council,Financial Services,Transport Related Expense,Diesel Oil,3202,FUELMATE LTD,A0090265,03/01/2023,AAS0331336,33.67,N,,N,N
Pendle Borough Council,Financial Services,Transport Related Expense,Diesel Oil,3202,FUELMATE LTD,A0090265,18/01/2023,AAS0331338,33.74,N,,N,N
Pendle Borough Council,Financial Services,Transport Related Expense,Diesel Oil,3202,FUELMATE LTD,A0090265,10/01/2023,AAS0331337,49.72,N,,N,N
Pendle Borough Council,Financial Services,Transport Related Expense,Diesel Oil,3202,FUELMATE LTD,A0090265,18/01/2023,AAS0331338,54.52,N,,N,N
Pendle Borough Council,Financial Services,Transport Related Expense,Diesel Oil,3202,FUELMATE LTD,A0090265,24/01/2023,AAS0331339,60.7,N,,N,N
Pendle Borough Council,Financial Services,Transport Related Expense,Diesel Oil,3202,FUELMATE LTD,A0090265,10/01/2023,AAS0331337,63.67,N,,N,N
Pendle Borough Council,Financial Services,Transport Related Expense,Diesel Oil,3202,FUELMATE LTD,A0090265,18/01/2023,AAS0331338,61.65,N,,N,N
Pendle Borough Council,Financial Services,Transport Related Expense,Diesel Oil,3202,FUELMATE LTD,A0090265,18/01/2023,AAS0331338,44.21,N,,N,N
Pendle Borough Council,Financial Services,Transport Related Expense,Diesel Oil,3202,FUELMATE LTD,A0090265,31/01/2023,AAS0331340,64.86,N,,N,N
Pendle Borough Council,Financial Services,Transport Related Expense,Diesel Oil,3202,FUELMATE LTD,A0090265,03/01/2023,AAS0331336,72.36,N,,N,N
Pendle Borough Council,Financial Services,Transport Related Expense,Diesel Oil,3202,FUELMATE LTD,A0090265,31/01/2023,AAS0331340,56.46,N,,N,N
Pendle Borough Council,Financial Services,Transport Related Expense,Diesel Oil,3202,FUELMATE LTD,A0090265,03/01/2023,AAS0331336,58.33,N,,N,N
Pendle Borough Council,Financial Services,Transport Related Expense,Diesel Oil,3202,FUELMATE LTD,A0090265,10/01/2023,AAS0331337,67.61,N,,N,N
Pendle Borough Council,Financial Services,Transport Related Expense,Diesel Oil,3202,FUELMATE LTD,A0090265,18/01/2023,AAS0331338,72.8,N,,N,N
Pendle Borough Council,Financial Services,Transport Related Expense,Diesel Oil,3202,FUELMATE LTD,A0090265,18/01/2023,AAS0331338,66.38,N,,N,N
Pendle Borough Council,Financial Services,Transport Related Expense,Diesel Oil,3202,FUELMATE LTD,A0090265,31/01/2023,AAS0331340,66.81,N,,N,N
Pendle Borough Council,Financial Services,Transport Related Expense,Diesel Oil,3202,FUELMATE LTD,A0090265,03/01/2023,AAS0331336,67.94,N,,N,N
Pendle Borough Council,Financial Services,Transport Related Expense,Diesel Oil,3202,FUELMATE LTD,A0090265,10/01/2023,AAS0331337,47.16,N,,N,N
Pendle Borough Council,Financial Services,Transport Related Expense,Diesel Oil,3202,FUELMATE LTD,A0090265,10/01/2023,AAS0331337,44.13,N,,N,N
Pendle Borough Council,Financial Services,Supplies and Services,Consultants Fees,4401,ACS LTD,A0090312,26/01/2023,AAS0331222,1700,N,,N,N
Pendle Borough Council,Engineering & Special Projects,Supplies and Services,Other Expenses,4705,ST JOHN WITH ST PHILIP PCC,A0090537,05/01/2023,HED0330703,7500,N,,N,N
Pendle Borough Council,Revenues Services,Supplies and Services,Consultants Fees,4401,PS&P LTD,A0090720,12/01/2023,TRE0330945,2,N,,N,N
Pendle Borough Council,Revenues Services,Supplies and Services,Consultants Fees,4401,PS&P LTD,A0090720,12/01/2023,TRE0330873,4,N,,N,N
Pendle Borough Council,Parks & Recreation Services,Premises Related Expense,Bldgs : R & M : Day To Day,2001,XL DISPLAYS LIMITED,A0091116,19/01/2023,PCO0331048,151,N,,N,N
Pendle Borough Council,Financial Services,Supplies and Services,Other Expenses,4705,RESTORE DATASHRED,A0091201,19/01/2023,AAS0331148,104,N,,N,N
Pendle Borough Council,Information Services,Capital Costs,Capital : Payments,CD14,SOFTCAT,A0091298,12/01/2023,ITS0330876,7211,N,,N,N
Pendle Borough Council,Operational Services,Transport Related Expense,Diesel Oil,3202,WCF LIMITED,A0091385,19/01/2023,OPS0331018,1520,N,,N,N
Pendle Borough Council,Planning & Building Control,,Fees Income : Non-VATable,9302,PORTALPLANQUEST LIMITED,A0091554,12/01/2023,PBC0330946,206,N,,N,N
Pendle Borough Council,Planning & Building Control,,Fees Income : Non-VATable,9302,PORTALPLANQUEST LIMITED,A0091554,12/01/2023,PBC0330961,14784,N,,N,N
Pendle Borough Council,Parks & Recreation Services,Agency Staff,Emp : Basic Wages,1001,NW RECRUITMENT SERVICES LIMITED,A0091588,05/01/2023,PCO0330675,1512.98,N,,N,N
Pendle Borough Council,Parks & Recreation Services,Agency Staff,Emp : Basic Wages,1001,NW RECRUITMENT SERVICES LIMITED,A0091588,12/01/2023,PCO0330862,1662.78,N,,N,N
Pendle Borough Council,Parks & Recreation Services,Agency Staff,Emp : Basic Wages,1001,NW RECRUITMENT SERVICES LIMITED,A0091588,19/01/2023,PCO0331075,1673.58,N,,N,N
Pendle Borough Council,Parks & Recreation Services,Agency Staff,Emp : Basic Wages,1001,NW RECRUITMENT SERVICES LIMITED,A0091588,19/01/2023,PCO0331044,1727.58,N,,N,N
Pendle Borough Council,Parks & Recreation Services,Agency Staff,Emp : Agency Wages,1004,NW RECRUITMENT SERVICES LIMITED,A0091588,19/01/2023,PCO0331045,160.49,N,,N,N
Pendle Borough Council,Operational Services,Agency Staff,Emp : Agency Wages,1004,NW RECRUITMENT SERVICES LIMITED,A0091588,12/01/2023,OPS0330901,1129.6,N,,N,N
Pendle Borough Council,Operational Services,Agency Staff,Emp : Agency Wages,1004,NW RECRUITMENT SERVICES LIMITED,A0091588,05/01/2023,OPS0330607,1828.34,N,,N,N
Pendle Borough Council,Operational Services,Agency Staff,Emp : Agency Wages,1004,NW RECRUITMENT SERVICES LIMITED,A0091588,12/01/2023,OPS0330931,2436.31,N,,N,N
Pendle Borough Council,Operational Services,Agency Staff,Emp : Agency Wages,1004,NW RECRUITMENT SERVICES LIMITED,A0091588,12/01/2023,OPS0330902,2953.56,N,,N,N
Pendle Borough Council,Parks & Recreation Services,Agency Staff,Emp : Agency Wages,1004,NW RECRUITMENT SERVICES LIMITED,A0091588,19/01/2023,PCO0331077,4944.16,N,,N,N
Pendle Borough Council,Parks & Recreation Services,Agency Staff,Emp : Agency Wages,1004,NW RECRUITMENT SERVICES LIMITED,A0091588,19/01/2023,PCO0331077,907.28,N,,N,N
Pendle Borough Council,Operational Services,Agency Staff,Emp : Agency Wages,1004,NW RECRUITMENT SERVICES LIMITED,A0091588,12/01/2023,OPS0330931,1015.14,N,,N,N
Pendle Borough Council,Operational Services,Agency Staff,Emp : Agency Wages,1004,NW RECRUITMENT SERVICES LIMITED,A0091588,05/01/2023,OPS0330607,1282.45,N,,N,N
Pendle Borough Council,Operational Services,Agency Staff,Emp : Agency Wages,1004,NW RECRUITMENT SERVICES LIMITED,A0091588,12/01/2023,OPS0330901,1467.34,N,,N,N
Pendle Borough Council,Operational Services,Agency Staff,Emp : Agency Wages,1004,NW RECRUITMENT SERVICES LIMITED,A0091588,12/01/2023,OPS0330902,2300.63,N,,N,N
Pendle Borough Council,Operational Services,Agency Staff,Emp : Agency Wages,1004,NW RECRUITMENT SERVICES LIMITED,A0091588,12/01/2023,OPS0330901,217.21,N,,N,N
Pendle Borough Council,Operational Services,Agency Staff,Emp : Agency Wages,1004,NW RECRUITMENT SERVICES LIMITED,A0091588,12/01/2023,OPS0330931,609.09,N,,N,N
Pendle Borough Council,Operational Services,Agency Staff,Emp : Agency Wages,1004,NW RECRUITMENT SERVICES LIMITED,A0091588,05/01/2023,OPS0330607,784.59,N,,N,N
Pendle Borough Council,Operational Services,Agency Staff,Emp : Agency Wages,1004,NW RECRUITMENT SERVICES LIMITED,A0091588,12/01/2023,OPS0330902,1105.59,N,,N,N
Pendle Borough Council,Parks & Recreation Services,Agency Staff,Emp : Agency Wages,1004,NW RECRUITMENT SERVICES LIMITED,A0091588,19/01/2023,PCO0331077,1189.53,N,,N,N
Pendle Borough Council,Parks & Recreation Services,Premises Related Expense,Bldgs : R & M : Day To Day,2001,NW RECRUITMENT SERVICES LIMITED,A0091588,19/01/2023,PCO0331076,145.9,N,,N,N
Pendle Borough Council,Parks & Recreation Services,Premises Related Expense,Grounds : R & M : Day to Day : Routine,2101,NW RECRUITMENT SERVICES LIMITED,A0091588,19/01/2023,PCO0331076,145.9,N,,N,N
Pendle Borough Council,Parks & Recreation Services,Supplies and Services,EFM : Other Equipment,4003,NW RECRUITMENT SERVICES LIMITED,A0091588,19/01/2023,PCO0331044,299.6,N,,N,N
Pendle Borough Council,Parks & Recreation Services,Supplies and Services,EFM : Other Equipment,4003,NW RECRUITMENT SERVICES LIMITED,A0091588,12/01/2023,PCO0330862,456.89,N,,N,N
Pendle Borough Council,Parks & Recreation Services,Supplies and Services,EFM : Other Equipment,4003,NW RECRUITMENT SERVICES LIMITED,A0091588,05/01/2023,PCO0330675,531.79,N,,N,N
Pendle Borough Council,Parks & Recreation Services,Supplies and Services,EFM : Other Equipment,4003,NW RECRUITMENT SERVICES LIMITED,A0091588,19/01/2023,PCO0331075,531.79,N,,N,N
Pendle Borough Council,Operational Services,Premises Related Expense,Bldgs : R & M : Day To Day,2001,GO PLANT FLEET SERVICES LIMITED,A0091600,19/01/2023,OPS0331081,123.03,N,,N,N
Pendle Borough Council,Operational Services,Transport Related Expense,Tprt : Repairs : General,3105,GO PLANT FLEET SERVICES LIMITED,A0091600,12/01/2023,OPS0330785,282.64,N,,N,N
Pendle Borough Council,Operational Services,Transport Related Expense,Tprt : Repairs : General,3105,GO PLANT FLEET SERVICES LIMITED,A0091600,12/01/2023,OPS0330787,207.19,N,,N,N
Pendle Borough Council,Operational Services,Transport Related Expense,Tprt : Repairs : General,3105,GO PLANT FLEET SERVICES LIMITED,A0091600,05/01/2023,OPS0330601,326.69,N,,N,N
Pendle Borough Council,Operational Services,Transport Related Expense,Tprt : Repairs : General,3105,GO PLANT FLEET SERVICES LIMITED,A0091600,12/01/2023,OPS0330790,41.01,N,,N,N
Pendle Borough Council,Operational Services,Transport Related Expense,Tprt : Repairs : General,3105,GO PLANT FLEET SERVICES LIMITED,A0091600,19/01/2023,OPS0331086,52.34,N,,N,N
Pendle Borough Council,Operational Services,Transport Related Expense,Tprt : Repairs : General,3105,GO PLANT FLEET SERVICES LIMITED,A0091600,19/01/2023,OPS0331084,380.26,N,,N,N
Pendle Borough Council,Operational Services,Transport Related Expense,Tprt : Repairs : General,3105,GO PLANT FLEET SERVICES LIMITED,A0091600,19/01/2023,OPS0331096,854.53,N,,N,N
Pendle Borough Council,Operational Services,Transport Related Expense,Tprt : Repairs : General,3105,GO PLANT FLEET SERVICES LIMITED,A0091600,19/01/2023,OPS0331094,132.79,N,,N,N
Pendle Borough Council,Operational Services,Transport Related Expense,Tprt : Repairs : General,3105,GO PLANT FLEET SERVICES LIMITED,A0091600,05/01/2023,OPS0330596,101,N,,N,N
Pendle Borough Council,Operational Services,Transport Related Expense,Tprt : Repairs : General,3105,GO PLANT FLEET SERVICES LIMITED,A0091600,26/01/2023,OPS4006653,-10.5,N,,N,N
Pendle Borough Council,Operational Services,Transport Related Expense,Tprt : Repairs : General,3105,GO PLANT FLEET SERVICES LIMITED,A0091600,26/01/2023,OPS0331035,516.57,N,,N,N
Pendle Borough Council,Operational Services,Transport Related Expense,Tprt : Repairs : General,3105,GO PLANT FLEET SERVICES LIMITED,A0091600,19/01/2023,OPS0331083,157.23,N,,N,N
Pendle Borough Council,Operational Services,Transport Related Expense,Tprt : Repairs : General,3105,GO PLANT FLEET SERVICES LIMITED,A0091600,19/01/2023,OPS0331085,92.96,N,,N,N
Pendle Borough Council,Operational Services,Transport Related Expense,Tprt : Repairs : General,3105,GO PLANT FLEET SERVICES LIMITED,A0091600,05/01/2023,OPS0330595,146.56,N,,N,N
Pendle Borough Council,Operational Services,Transport Related Expense,Tprt : Repairs : General,3105,GO PLANT FLEET SERVICES LIMITED,A0091600,12/01/2023,OPS0330791,41.01,N,,N,N
Pendle Borough Council,Operational Services,Transport Related Expense,Tprt : Repairs : General,3105,GO PLANT FLEET SERVICES LIMITED,A0091600,05/01/2023,OPS0330597,61.52,N,,N,N
Pendle Borough Council,Operational Services,Transport Related Expense,Tprt : Repairs : General,3105,GO PLANT FLEET SERVICES LIMITED,A0091600,19/01/2023,OPS0331098,80.06,N,,N,N
Pendle Borough Council,Operational Services,Transport Related Expense,Tprt : Repairs : General,3105,GO PLANT FLEET SERVICES LIMITED,A0091600,19/01/2023,OPS0331088,97.22,N,,N,N
Pendle Borough Council,Operational Services,Transport Related Expense,Tprt : Repairs : General,3105,GO PLANT FLEET SERVICES LIMITED,A0091600,19/01/2023,OPS0331087,215.62,N,,N,N
Pendle Borough Council,Operational Services,Transport Related Expense,Tprt : Repairs : General,3105,GO PLANT FLEET SERVICES LIMITED,A0091600,19/01/2023,OPS0331095,658.56,N,,N,N
Pendle Borough Council,Operational Services,Transport Related Expense,Tprt : Repairs : General,3105,GO PLANT FLEET SERVICES LIMITED,A0091600,19/01/2023,OPS0331082,53.63,N,,N,N
Pendle Borough Council,Operational Services,Transport Related Expense,Tprt : Repairs : General,3105,GO PLANT FLEET SERVICES LIMITED,A0091600,12/01/2023,OPS0330786,153.71,N,,N,N
Pendle Borough Council,Operational Services,Transport Related Expense,Tprt : Repairs : General,3105,GO PLANT FLEET SERVICES LIMITED,A0091600,19/01/2023,OPS0331097,198.46,N,,N,N
Pendle Borough Council,Operational Services,Transport Related Expense,Tprt : Repairs : General,3105,GO PLANT FLEET SERVICES LIMITED,A0091600,12/01/2023,OPS0330789,21.3,N,,N,N
Pendle Borough Council,Operational Services,Transport Related Expense,Tprt : Repairs : General,3105,GO PLANT FLEET SERVICES LIMITED,A0091600,05/01/2023,OPS0330591,58.69,N,,N,N
Pendle Borough Council,Operational Services,Transport Related Expense,Tprt : Repairs : General,3105,GO PLANT FLEET SERVICES LIMITED,A0091600,19/01/2023,OPS0331080,118.06,N,,N,N
Pendle Borough Council,Operational Services,Transport Related Expense,Tprt : Repairs : General,3105,GO PLANT FLEET SERVICES LIMITED,A0091600,05/01/2023,OPS0330600,562.34,N,,N,N
Pendle Borough Council,Operational Services,Transport Related Expense,Tprt : Repairs : General,3105,GO PLANT FLEET SERVICES LIMITED,A0091600,12/01/2023,OPS0330788,211.5,N,,N,N
Pendle Borough Council,Operational Services,Transport Related Expense,Tprt : Repairs : General,3105,GO PLANT FLEET SERVICES LIMITED,A0091600,12/01/2023,OPS0330796,480.33,N,,N,N
Pendle Borough Council,Operational Services,Transport Related Expense,Tyres,3204,GO PLANT FLEET SERVICES LIMITED,A0091600,12/01/2023,OPS0330785,646.45,N,,N,N
Pendle Borough Council,Operational Services,Transport Related Expense,Tyres,3204,GO PLANT FLEET SERVICES LIMITED,A0091600,05/01/2023,OPS0330594,265.58,N,,N,N
Pendle Borough Council,Operational Services,Transport Related Expense,Tyres,3204,GO PLANT FLEET SERVICES LIMITED,A0091600,26/01/2023,OPS0331035,432.08,N,,N,N
Pendle Borough Council,Operational Services,Transport Related Expense,Tyres,3204,GO PLANT FLEET SERVICES LIMITED,A0091600,12/01/2023,OPS0330792,108.3,N,,N,N
Pendle Borough Council,Operational Services,Transport Related Expense,Tyres,3204,GO PLANT FLEET SERVICES LIMITED,A0091600,05/01/2023,OPS0330593,108.31,N,,N,N
Pendle Borough Council,Operational Services,Transport Related Expense,Tyres,3204,GO PLANT FLEET SERVICES LIMITED,A0091600,05/01/2023,OPS0330598,108.31,N,,N,N
Pendle Borough Council,Operational Services,Transport Related Expense,Tyres,3204,GO PLANT FLEET SERVICES LIMITED,A0091600,12/01/2023,OPS0330793,110.53,N,,N,N
Pendle Borough Council,Operational Services,Transport Related Expense,Tyres,3204,GO PLANT FLEET SERVICES LIMITED,A0091600,05/01/2023,OPS0330599,108.31,N,,N,N
Pendle Borough Council,Operational Services,Transport Related Expense,Tyres,3204,GO PLANT FLEET SERVICES LIMITED,A0091600,12/01/2023,OPS0330795,184.83,N,,N,N
Pendle Borough Council,Operational Services,Transport Related Expense,Tyres,3204,GO PLANT FLEET SERVICES LIMITED,A0091600,12/01/2023,OPS0330794,110.53,N,,N,N
Pendle Borough Council,Operational Services,Transport Related Expense,Tyres,3204,GO PLANT FLEET SERVICES LIMITED,A0091600,19/01/2023,OPS0331092,117,N,,N,N
Pendle Borough Council,Operational Services,Transport Related Expense,Tyres,3204,GO PLANT FLEET SERVICES LIMITED,A0091600,19/01/2023,OPS0331078,116.99,N,,N,N
Pendle Borough Council,Operational Services,Transport Related Expense,Tyres,3204,GO PLANT FLEET SERVICES LIMITED,A0091600,19/01/2023,OPS0331079,126.18,N,,N,N
Pendle Borough Council,Operational Services,Transport Related Expense,Tprt : Annual Hire Charge,3601,GO PLANT FLEET SERVICES LIMITED,A0091600,12/01/2023,OPS0330872,3540.62,N,,N,N
Pendle Borough Council,Operational Services,Transport Related Expense,Tprt : Annual Hire Charge,3601,GO PLANT FLEET SERVICES LIMITED,A0091600,12/01/2023,OPS0330872,3540.62,N,,N,N
Pendle Borough Council,Operational Services,Transport Related Expense,Tprt : Annual Hire Charge,3601,GO PLANT FLEET SERVICES LIMITED,A0091600,12/01/2023,OPS0330872,3540.62,N,,N,N
Pendle Borough Council,Operational Services,Transport Related Expense,Tprt : Annual Hire Charge,3601,GO PLANT FLEET SERVICES LIMITED,A0091600,12/01/2023,OPS0330872,3540.62,N,,N,N
Pendle Borough Council,Operational Services,Transport Related Expense,Tprt : Annual Hire Charge,3601,GO PLANT FLEET SERVICES LIMITED,A0091600,12/01/2023,OPS0330872,3540.62,N,,N,N
Pendle Borough Council,Operational Services,Transport Related Expense,Tprt : Annual Hire Charge,3601,GO PLANT FLEET SERVICES LIMITED,A0091600,12/01/2023,OPS0330872,3344.64,N,,N,N
Pendle Borough Council,Operational Services,Transport Related Expense,Tprt : Annual Hire Charge,3601,GO PLANT FLEET SERVICES LIMITED,A0091600,12/01/2023,OPS0330872,3540.62,N,,N,N
Pendle Borough Council,Operational Services,Transport Related Expense,Tprt : Annual Hire Charge,3601,GO PLANT FLEET SERVICES LIMITED,A0091600,12/01/2023,OPS0330872,3540.62,N,,N,N
Pendle Borough Council,Operational Services,Transport Related Expense,Tprt : Annual Hire Charge,3601,GO PLANT FLEET SERVICES LIMITED,A0091600,12/01/2023,OPS0330872,3549.74,N,,N,N
Pendle Borough Council,Operational Services,Transport Related Expense,Tprt : Annual Hire Charge,3601,GO PLANT FLEET SERVICES LIMITED,A0091600,12/01/2023,OPS0330872,3549.74,N,,N,N
Pendle Borough Council,Operational Services,Transport Related Expense,Tprt : Annual Hire Charge,3601,GO PLANT FLEET SERVICES LIMITED,A0091600,12/01/2023,OPS0330872,3549.74,N,,N,N
Pendle Borough Council,Operational Services,Transport Related Expense,Tprt : Annual Hire Charge,3601,GO PLANT FLEET SERVICES LIMITED,A0091600,12/01/2023,OPS0330872,3497.07,N,,N,N
Pendle Borough Council,Operational Services,Transport Related Expense,Tprt : Annual Hire Charge,3601,GO PLANT FLEET SERVICES LIMITED,A0091600,12/01/2023,OPS0330872,3393,N,,N,N
Pendle Borough Council,Operational Services,Transport Related Expense,Tprt : Annual Hire Charge,3601,GO PLANT FLEET SERVICES LIMITED,A0091600,12/01/2023,OPS0330872,2654.17,N,,N,N
Pendle Borough Council,Operational Services,Transport Related Expense,Tprt : Annual Hire Charge,3601,GO PLANT FLEET SERVICES LIMITED,A0091600,12/01/2023,OPS0330872,1981.53,N,,N,N
Pendle Borough Council,Operational Services,Transport Related Expense,Tprt : Annual Hire Charge,3601,GO PLANT FLEET SERVICES LIMITED,A0091600,12/01/2023,OPS0330872,1981.53,N,,N,N
Pendle Borough Council,Operational Services,Transport Related Expense,Tprt : Annual Hire Charge,3601,GO PLANT FLEET SERVICES LIMITED,A0091600,12/01/2023,OPS0330872,1981.53,N,,N,N
Pendle Borough Council,Operational Services,Transport Related Expense,Tprt : Annual Hire Charge,3601,GO PLANT FLEET SERVICES LIMITED,A0091600,12/01/2023,OPS0330872,1981.53,N,,N,N
Pendle Borough Council,Operational Services,Transport Related Expense,Tprt : Annual Hire Charge,3601,GO PLANT FLEET SERVICES LIMITED,A0091600,12/01/2023,OPS0330872,1981.53,N,,N,N
Pendle Borough Council,Operational Services,Transport Related Expense,Tprt : Annual Hire Charge,3601,GO PLANT FLEET SERVICES LIMITED,A0091600,12/01/2023,OPS0330872,509.54,N,,N,N
Pendle Borough Council,Operational Services,Transport Related Expense,Tprt : Annual Hire Charge,3601,GO PLANT FLEET SERVICES LIMITED,A0091600,12/01/2023,OPS0330872,509.54,N,,N,N
Pendle Borough Council,Operational Services,Transport Related Expense,Tprt : Annual Hire Charge,3601,GO PLANT FLEET SERVICES LIMITED,A0091600,12/01/2023,OPS0330872,598.81,N,,N,N
Pendle Borough Council,Operational Services,Transport Related Expense,Tprt : Annual Hire Charge,3601,GO PLANT FLEET SERVICES LIMITED,A0091600,12/01/2023,OPS0330872,650,N,,N,N
Pendle Borough Council,Operational Services,Transport Related Expense,Tprt : Annual Hire Charge,3601,GO PLANT FLEET SERVICES LIMITED,A0091600,12/01/2023,OPS0330872,598.81,N,,N,N
Pendle Borough Council,Operational Services,Transport Related Expense,Tprt : Annual Hire Charge,3601,GO PLANT FLEET SERVICES LIMITED,A0091600,12/01/2023,OPS0330872,598.81,N,,N,N
Pendle Borough Council,Operational Services,Transport Related Expense,Tprt : Annual Hire Charge,3601,GO PLANT FLEET SERVICES LIMITED,A0091600,12/01/2023,OPS0330872,650,N,,N,N
Pendle Borough Council,Operational Services,Transport Related Expense,Tprt : Annual Hire Charge,3601,GO PLANT FLEET SERVICES LIMITED,A0091600,12/01/2023,OPS0330872,598.81,N,,N,N
Pendle Borough Council,Operational Services,Transport Related Expense,Tprt : Annual Hire Charge,3601,GO PLANT FLEET SERVICES LIMITED,A0091600,12/01/2023,OPS0330872,239.53,N,,N,N
Pendle Borough Council,Operational Services,Transport Related Expense,Tprt : Annual Hire Charge,3601,GO PLANT FLEET SERVICES LIMITED,A0091600,12/01/2023,OPS0330872,239.53,N,,N,N
Pendle Borough Council,Operational Services,Transport Related Expense,Tprt : Annual Hire Charge,3601,GO PLANT FLEET SERVICES LIMITED,A0091600,12/01/2023,OPS0330872,239.53,N,,N,N
Pendle Borough Council,Operational Services,Transport Related Expense,Tprt : Annual Hire Charge,3601,GO PLANT FLEET SERVICES LIMITED,A0091600,12/01/2023,OPS0330872,239.53,N,,N,N
Pendle Borough Council,Operational Services,Transport Related Expense,Tprt : Annual Hire Charge,3601,GO PLANT FLEET SERVICES LIMITED,A0091600,12/01/2023,OPS0330872,239.53,N,,N,N
Pendle Borough Council,Operational Services,Transport Related Expense,Tprt : Annual Hire Charge,3601,GO PLANT FLEET SERVICES LIMITED,A0091600,12/01/2023,OPS0330872,239.53,N,,N,N
Pendle Borough Council,Operational Services,Transport Related Expense,Tprt : Annual Hire Charge,3601,GO PLANT FLEET SERVICES LIMITED,A0091600,12/01/2023,OPS0330872,239.53,N,,N,N
Pendle Borough Council,Operational Services,Transport Related Expense,Tprt : Annual Hire Charge,3601,GO PLANT FLEET SERVICES LIMITED,A0091600,12/01/2023,OPS0330872,339.69,N,,N,N
Pendle Borough Council,Operational Services,Transport Related Expense,Tprt : Annual Hire Charge,3601,GO PLANT FLEET SERVICES LIMITED,A0091600,12/01/2023,OPS0330872,592.28,N,,N,N
Pendle Borough Council,Operational Services,Transport Related Expense,Tprt : Annual Hire Charge,3601,GO PLANT FLEET SERVICES LIMITED,A0091600,12/01/2023,OPS0330872,592.28,N,,N,N
Pendle Borough Council,Operational Services,Transport Related Expense,Tprt : Annual Hire Charge,3601,GO PLANT FLEET SERVICES LIMITED,A0091600,12/01/2023,OPS0330872,592.28,N,,N,N
Pendle Borough Council,Operational Services,Transport Related Expense,Tprt : Annual Hire Charge,3601,GO PLANT FLEET SERVICES LIMITED,A0091600,12/01/2023,OPS0330872,592.28,N,,N,N
Pendle Borough Council,Operational Services,Transport Related Expense,Tprt : Annual Hire Charge,3601,GO PLANT FLEET SERVICES LIMITED,A0091600,12/01/2023,OPS0330872,592.28,N,,N,N
Pendle Borough Council,Operational Services,Transport Related Expense,Tprt : Annual Hire Charge,3601,GO PLANT FLEET SERVICES LIMITED,A0091600,12/01/2023,OPS0330872,535.67,N,,N,N
Pendle Borough Council,Operational Services,Transport Related Expense,Tprt : Annual Hire Charge,3601,GO PLANT FLEET SERVICES LIMITED,A0091600,12/01/2023,OPS0330872,239.53,N,,N,N
Pendle Borough Council,Operational Services,Transport Related Expense,Tprt : Annual Hire Charge,3601,GO PLANT FLEET SERVICES LIMITED,A0091600,12/01/2023,OPS0330872,496.4,N,,N,N
Pendle Borough Council,Operational Services,Transport Related Expense,Tprt : Annual Hire Charge,3601,GO PLANT FLEET SERVICES LIMITED,A0091600,12/01/2023,OPS0330872,496.4,N,,N,N
Pendle Borough Council,Engineering & Special Projects,Supplies and Services,Publicity & advertisement,4704,CMS LIVE,A0091625,19/01/2023,HED0331052,15,N,,N,N
Pendle Borough Council,Property Services,Supplies and Services,Publicity & advertisement,4704,VEG-IT,A0091641,26/01/2023,EST0331196,210,N,,N,N
Pendle Borough Council,Engineering & Special Projects,Premises Related Expense,Bldgs : R & M : Day To Day,2001,A&G LANDSCAPES & GROUNDWORKS LIMITED,A0091675,26/01/2023,HED0331213,27.5,N,,N,N
Pendle Borough Council,Engineering & Special Projects,Premises Related Expense,Bldgs : R & M : Day To Day,2001,A&G LANDSCAPES & GROUNDWORKS LIMITED,A0091675,26/01/2023,HED0331213,165,N,,N,N
Pendle Borough Council,Engineering & Special Projects,Premises Related Expense,Bldgs : R & M : Day To Day,2001,A&G LANDSCAPES & GROUNDWORKS LIMITED,A0091675,26/01/2023,HED0331212,250,N,,N,N
Pendle Borough Council,Parks & Recreation Services,Premises Related Expense,Grounds : R & M : Day to Day : Routine,2101,A&G LANDSCAPES & GROUNDWORKS LIMITED,A0091675,19/01/2023,PCO0331062,750,N,,N,N
Pendle Borough Council,Parks & Recreation Services,Premises Related Expense,Grounds : R & M : Day to Day : Routine,2101,A&G LANDSCAPES & GROUNDWORKS LIMITED,A0091675,19/01/2023,PCO0331062,1295,N,,N,N
Pendle Borough Council,Engineering & Special Projects,Premises Related Expense,Grounds : R & M : Day to Day : Routine,2101,A&G LANDSCAPES & GROUNDWORKS LIMITED,A0091675,12/01/2023,HED0330950,250,N,,N,N
Pendle Borough Council,Engineering & Special Projects,Supplies and Services,Sub-Contractors,4007,A&G LANDSCAPES & GROUNDWORKS LIMITED,A0091675,26/01/2023,HED0331211,1000,N,,N,N
Pendle Borough Council,Engineering & Special Projects,Supplies and Services,Sub-Contractors,4007,A&G LANDSCAPES & GROUNDWORKS LIMITED,A0091675,26/01/2023,HED0331211,2429.9,N,,N,N
Pendle Borough Council,Engineering & Special Projects,Capital Costs,Capital: Design Fees,CD53,PEARL TOGETHER LIMITED,A0091725,19/01/2023,HED0331033,20390,N,,N,N
Pendle Borough Council,Engineering & Special Projects,Agency Staff,Emp : Agency Wages,1004,THE OYSTER PARTNERSHIP LIMITED,A0091781,12/01/2023,HED0330958,1308.06,N,,N,N
Pendle Borough Council,Engineering & Special Projects,Agency Staff,Emp : Agency Wages,1004,THE OYSTER PARTNERSHIP LIMITED,A0091781,05/01/2023,HED0330664,1352.44,N,,N,N
Pendle Borough Council,Engineering & Special Projects,Agency Staff,Emp : Agency Wages,1004,THE OYSTER PARTNERSHIP LIMITED,A0091781,12/01/2023,HED0330825,1352.44,N,,N,N
Pendle Borough Council,Engineering & Special Projects,Agency Staff,Emp : Agency Wages,1004,THE OYSTER PARTNERSHIP LIMITED,A0091781,05/01/2023,HED0330666,1399.68,N,,N,N
Pendle Borough Council,Engineering & Special Projects,Agency Staff,Emp : Agency Wages,1004,THE OYSTER PARTNERSHIP LIMITED,A0091781,12/01/2023,HED0330957,1399.68,N,,N,N
Pendle Borough Council,Engineering & Special Projects,Agency Staff,Emp : Agency Wages,1004,THE OYSTER PARTNERSHIP LIMITED,A0091781,05/01/2023,HED0330667,1487.55,N,,N,N
Pendle Borough Council,Engineering & Special Projects,Agency Staff,Emp : Agency Wages,1004,THE OYSTER PARTNERSHIP LIMITED,A0091781,19/01/2023,HED0331142,1505.53,N,,N,N
Pendle Borough Council,Engineering & Special Projects,Agency Staff,Emp : Agency Wages,1004,THE OYSTER PARTNERSHIP LIMITED,A0091781,05/01/2023,HED0330663,1542.04,N,,N,N
Pendle Borough Council,Engineering & Special Projects,Agency Staff,Emp : Agency Wages,1004,THE OYSTER PARTNERSHIP LIMITED,A0091781,19/01/2023,HED0331141,1555.2,N,,N,N
Pendle Borough Council,Engineering & Special Projects,Supplies and Services,Other Expenses,4705,ROUGHLEE BOOTH PARISH COUNCIL,A0091815,19/01/2023,HED0331051,163,N,,N,N
Pendle Borough Council,Engineering & Special Projects,Agency Staff,Emp : Agency Wages,1004,G2 RECRUITMENT SOLUTIONS,A0091827,26/01/2023,HED0331161,1455.1,N,,N,N
Pendle Borough Council,Engineering & Special Projects,Supplies and Services,Consultants Fees,4401,G2 RECRUITMENT SOLUTIONS,A0091827,19/01/2023,HED0330976,18.9,N,,N,N
Pendle Borough Council,Engineering & Special Projects,Supplies and Services,Consultants Fees,4401,G2 RECRUITMENT SOLUTIONS,A0091827,19/01/2023,HED0331053,1799.9,N,,N,N
Pendle Borough Council,Engineering & Special Projects,Supplies and Services,Consultants Fees,4401,G2 RECRUITMENT SOLUTIONS,A0091827,19/01/2023,HED0330978,2038.55,N,,N,N
Pendle Borough Council,Engineering & Special Projects,Supplies and Services,Consultants Fees,4401,G2 RECRUITMENT SOLUTIONS,A0091827,19/01/2023,HED0330977,2467.5,N,,N,N
Pendle Borough Council,Engineering & Special Projects,Capital Costs,Capital : Salaries,CD13,G2 RECRUITMENT SOLUTIONS,A0091827,19/01/2023,HED0331056,486,N,,N,N
Pendle Borough Council,Engineering & Special Projects,Capital Costs,Capital : Salaries,CD13,G2 RECRUITMENT SOLUTIONS,A0091827,05/01/2023,HED0330665,1332,N,,N,N
Pendle Borough Council,Engineering & Special Projects,Capital Costs,Capital : Salaries,CD13,G2 RECRUITMENT SOLUTIONS,A0091827,05/01/2023,HED0330680,1332,N,,N,N
Pendle Borough Council,Parks & Recreation Services,Premises Related Expense,Muslim Burial Vaults,2106,J RAWSON & SONS,A0091873,19/01/2023,PCO0331063,6000,N,,N,N
Pendle Borough Council,Parks & Recreation Services,Premises Related Expense,Muslim Burial Vaults,2106,J RAWSON & SONS,A0091873,19/01/2023,PCO0331064,7200,N,,N,N
Pendle Borough Council,Parks & Recreation Services,Premises Related Expense,Muslim Burial Vaults,2106,J RAWSON & SONS,A0091873,19/01/2023,PCO0331065,7200,N,,N,N
Pendle Borough Council,Engineering & Special Projects,Capital Costs,Ren Grant : 1996 Act,CH22,CLEGG CONSTRUCTION UK,A0091885,19/01/2023,HED0330973,6140.8,N,,N,N
Pendle Borough Council,Engineering & Special Projects,Capital Costs,Ren Grant : 1996 Act,CH22,CLEGG CONSTRUCTION UK,A0091885,05/01/2023,HED0330704,7013.9,N,,N,N
Pendle Borough Council,Engineering & Special Projects,Supplies and Services,Other Expenses,4705,PICK PROTECTION,A0091948,19/01/2023,HED0330975,553.56,N,,N,N
Pendle Borough Council,Parks & Recreation Services,Supplies and Services,Protective Clothing,4201,SMI GROUP UK,A0091999,19/01/2023,PCO0331071,28.3,N,,N,N
Pendle Borough Council,Parks & Recreation Services,Supplies and Services,Protective Clothing,4201,SMI GROUP UK,A0091999,19/01/2023,PCO0331071,28.3,N,,N,N
Pendle Borough Council,Parks & Recreation Services,Supplies and Services,Protective Clothing,4201,SMI GROUP UK,A0091999,19/01/2023,PCO0331070,135.81,N,,N,N
Pendle Borough Council,Parks & Recreation Services,Supplies and Services,Protective Clothing,4201,SMI GROUP UK,A0091999,19/01/2023,PCO0331070,185.5,N,,N,N
Pendle Borough Council,Parks & Recreation Services,Supplies and Services,Protective Clothing,4201,SMI GROUP UK,A0091999,19/01/2023,PCO0331070,193.68,N,,N,N
Pendle Borough Council,Operational Services,,Stock : Purchases,PJ01,SMI GROUP UK,A0091999,12/01/2023,OPS0330847,6.95,N,,N,N
Pendle Borough Council,Operational Services,,Stock : Purchases,PJ01,SMI GROUP UK,A0091999,19/01/2023,OPS0331023,6.95,N,,N,N
Pendle Borough Council,Operational Services,,Stock : Purchases,PJ01,SMI GROUP UK,A0091999,19/01/2023,OPS0331023,42.15,N,,N,N
Pendle Borough Council,Operational Services,,Stock : Purchases,PJ01,SMI GROUP UK,A0091999,12/01/2023,OPS0330847,56.84,N,,N,N
Pendle Borough Council,Operational Services,,Stock : Purchases,PJ01,SMI GROUP UK,A0091999,05/01/2023,OPS0330604,140.3,N,,N,N
Pendle Borough Council,Operational Services,,Stock : Purchases,PJ01,SMI GROUP UK,A0091999,19/01/2023,OPS0331024,198.94,N,,N,N
Pendle Borough Council,Engineering & Special Projects,Supplies and Services,Children`s holiday activities,4716,THE LIGHTBEAM ACADEMY LTD,A0092431,12/01/2023,HED0330824,378,N,,N,N
Pendle Borough Council,Engineering & Special Projects,Premises Related Expense,Bldgs : R & M : Abnormal,2002,BARROWFORD SAFE AND LOCK SERVICES LTD,A0092646,05/01/2023,HED0330681,25,N,,N,N
Pendle Borough Council,Engineering & Special Projects,,Fees Income : Non-VATable,9302,QUADSAFE LTD T/A A FRAME ENGINEERING,A0093059,26/01/2023,HED0331193,1500,N,,N,N
Pendle Borough Council,Engineering & Special Projects,Supplies and Services,Children`s holiday activities,4716,QM CATERING LTD,A0093265,12/01/2023,HED0330828,470,N,,N,N
Pendle Borough Council,Engineering & Special Projects,Supplies and Services,Children`s holiday activities,4716,QM CATERING LTD,A0093265,12/01/2023,HED0330829,2950,N,,N,N
Pendle Borough Council,Engineering & Special Projects,Supplies and Services,Children`s holiday activities,4716,SMARTYPANTS EXCLUSIVE CHILDCARE,A0093288,05/01/2023,HED0330710,280,N,,N,N
Pendle Borough Council,Engineering & Special Projects,Supplies and Services,Children`s holiday activities,4716,SMARTYPANTS EXCLUSIVE CHILDCARE,A0093288,05/01/2023,HED0330671,2520,N,,N,N
Pendle Borough Council,Engineering & Special Projects,Supplies and Services,Other Expenses,4705,FRED HAMER FUNERAL SERVICE NELSON,A0093306,05/01/2023,HED0330698,995,N,,N,N
Pendle Borough Council,Engineering & Special Projects,Capital Costs,Ren Grant : 1996 Act,CH22,PENBURN CONSTRUCTION LTD,A0093321,12/01/2023,HED0330823,15644.29,N,,N,N
Pendle Borough Council,Operational Services,Supplies and Services,EFM Materials,4004,AMAZON PAYMENTS UK LIMITED,A0093876,05/01/2023,OPS0330603,26.5,N,,N,N
Pendle Borough Council,Operational Services,Supplies and Services,EFM Materials,4004,AMAZON PAYMENTS UK LIMITED,A0093876,05/01/2023,OPS0330652,26.5,N,,N,N
Pendle Borough Council,Operational Services,Supplies and Services,EFM Materials,4004,AMAZON PAYMENTS UK LIMITED,A0093876,05/01/2023,OPS0330653,26.5,N,,N,N
Pendle Borough Council,Operational Services,Supplies and Services,EFM Materials,4004,AMAZON PAYMENTS UK LIMITED,A0093876,05/01/2023,OPS0330657,32.46,N,,N,N
Pendle Borough Council,Operational Services,Supplies and Services,EFM Materials,4004,AMAZON PAYMENTS UK LIMITED,A0093876,05/01/2023,OPS0330656,41.5,N,,N,N
Pendle Borough Council,Operational Services,Supplies and Services,EFM Materials,4004,AMAZON PAYMENTS UK LIMITED,A0093876,05/01/2023,OPS0330654,45.2,N,,N,N
Pendle Borough Council,Operational Services,Supplies and Services,EFM Materials,4004,AMAZON PAYMENTS UK LIMITED,A0093876,05/01/2023,OPS0330651,64.05,N,,N,N
Pendle Borough Council,Operational Services,Supplies and Services,EFM Materials,4004,AMAZON PAYMENTS UK LIMITED,A0093876,05/01/2023,OPS0330655,67.8,N,,N,N
Pendle Borough Council,Parks & Recreation Services,Supplies and Services,Expenditure : Materials,0002,TURFIX PITCH SOLUTIONS,A0094206,19/01/2023,PCO0331039,1550,N,,N,N
Pendle Borough Council,Revenues Services,Supplies and Services,Consultants Fees,4401,MARSTON (HOLDINGS) LIMITED,A0094273,12/01/2023,TRE0330869,36,N,,N,N
Pendle Borough Council,Revenues Services,Supplies and Services,Consultants Fees,4401,MARSTON (HOLDINGS) LIMITED,A0094273,05/01/2023,TRE0330774,46.89,N,,N,N
Pendle Borough Council,Engineering & Special Projects,Capital Costs,Ren Grant : 1996 Act,CH22,SOUTHFIELD CONSTRUCTION,A0094294,05/01/2023,HED0330689,6416,N,,N,N
Pendle Borough Council,Engineering & Special Projects,Capital Costs,Ren Grant : 1996 Act,CH22,SOUTHFIELD CONSTRUCTION,A0094294,12/01/2023,HED0330959,10477,N,,N,N
Pendle Borough Council,Engineering & Special Projects,Capital Costs,Ren Grant : 1996 Act,CH22,SOUTHFIELD CONSTRUCTION,A0094294,05/01/2023,HED0330690,30000,N,,N,N
Pendle Borough Council,Information Services,Capital Costs,Capital : Payments,CD14,COMPLETE IT SYSTEMS LIMITED,A0094309,12/01/2023,ITS0330877,6,N,,N,N
Pendle Borough Council,Information Services,Capital Costs,Capital : Payments,CD14,COMPLETE IT SYSTEMS LIMITED,A0094309,12/01/2023,ITS0330877,150,N,,N,N
Pendle Borough Council,Information Services,Capital Costs,Capital : Payments,CD14,COMPLETE IT SYSTEMS LIMITED,A0094309,12/01/2023,ITS0330877,975,N,,N,N
Pendle Borough Council,Engineering & Special Projects,Supplies and Services,Other Expenses,4705,COLNE YOUTH ACTION GROUP,A0096017,12/01/2023,HED0330883,980,N,,N,N
Pendle Borough Council,Engineering & Special Projects,Supplies and Services,Children`s holiday activities,4716,COLNE YOUTH ACTION GROUP,A0096017,19/01/2023,HED0330963,280,N,,N,N
Pendle Borough Council,Engineering & Special Projects,Supplies and Services,Children`s holiday activities,4716,COLNE YOUTH ACTION GROUP,A0096017,19/01/2023,HED0330964,560,N,,N,N
Pendle Borough Council,Engineering & Special Projects,Supplies and Services,Children`s holiday activities,4716,COLNE YOUTH ACTION GROUP,A0096017,05/01/2023,HED0330670,2520,N,,N,N
Pendle Borough Council,Planning & Building Control,,Other Income : Non-VATable,9303,REDACT - PERSONAL DATA,A0096223,05/01/2023,PBC0330721,59.22,N,,N,N
Pendle Borough Council,Engineering & Special Projects,Supplies and Services,Children`s holiday activities,4716,COMMUNITY ARTS BY ZK,A0096410,12/01/2023,HED0330890,4205,N,,N,N
Pendle Borough Council,Engineering & Special Projects,Supplies and Services,Children`s holiday activities,4716,HARRINGTONS LEARNING CENTRE,A0096412,12/01/2023,HED0330826,4791.6,N,,N,N
Pendle Borough Council,Engineering & Special Projects,Supplies and Services,Children`s holiday activities,4716,HARRINGTONS LEARNING CENTRE,A0096412,12/01/2023,HED0330827,9950.4,N,,N,N
Pendle Borough Council,Engineering & Special Projects,Supplies and Services,Children`s holiday activities,4716,STAGE DOOR,A0096413,05/01/2023,HED0330668,1265.4,N,,N,N
Pendle Borough Council,Engineering & Special Projects,Transfer Payments,Accommodation ,6103,REGENT GUEST HOUSE,A0096417,05/01/2023,HED0330713,180,N,,N,N
Pendle Borough Council,Engineering & Special Projects,Transfer Payments,Accommodation ,6103,REGENT GUEST HOUSE,A0096417,05/01/2023,HED0330720,1260,N,,N,N
Pendle Borough Council,Engineering & Special Projects,Transfer Payments,Accommodation ,6103,REGENT GUEST HOUSE,A0096417,05/01/2023,HED0330719,2590,N,,N,N
Pendle Borough Council,Engineering & Special Projects,Transfer Payments,Accommodation ,6103,REGENT GUEST HOUSE,A0096417,05/01/2023,HED0330716,2940,N,,N,N
Pendle Borough Council,Engineering & Special Projects,Transfer Payments,Accommodation ,6103,REGENT GUEST HOUSE,A0096417,05/01/2023,HED0330717,3150,N,,N,N
Pendle Borough Council,Engineering & Special Projects,Transfer Payments,Accommodation ,6103,REGENT GUEST HOUSE,A0096417,05/01/2023,HED0330714,3180,N,,N,N
Pendle Borough Council,Engineering & Special Projects,Transfer Payments,Accommodation ,6103,REGENT GUEST HOUSE,A0096417,05/01/2023,HED0330715,3180,N,,N,N
Pendle Borough Council,Engineering & Special Projects,Transfer Payments,Accommodation ,6103,REGENT GUEST HOUSE,A0096417,05/01/2023,HED0330718,3360,N,,N,N
Pendle Borough Council,Property Services,Premises Related Expense,Electricity,2203,E.ON NEXT ENERGY LIMITED,A0096428,19/01/2023,EST0331132,4.37,N,,N,N
Pendle Borough Council,Property Services,Premises Related Expense,Electricity,2203,E.ON NEXT ENERGY LIMITED,A0096428,05/01/2023,EST0330741,44.81,N,,N,N
Pendle Borough Council,Property Services,Premises Related Expense,Electricity,2203,E.ON NEXT ENERGY LIMITED,A0096428,05/01/2023,EST0330738,3.08,N,,N,N
Pendle Borough Council,Property Services,Premises Related Expense,Electricity,2203,E.ON NEXT ENERGY LIMITED,A0096428,19/01/2023,EST0331124,25.45,N,,N,N
Pendle Borough Council,Property Services,Premises Related Expense,Electricity,2203,E.ON NEXT ENERGY LIMITED,A0096428,05/01/2023,EST0330742,45.83,N,,N,N
Pendle Borough Council,Property Services,Premises Related Expense,Electricity,2203,E.ON NEXT ENERGY LIMITED,A0096428,05/01/2023,EST0330742,51.4,N,,N,N
Pendle Borough Council,Property Services,Premises Related Expense,Electricity,2203,E.ON NEXT ENERGY LIMITED,A0096428,19/01/2023,EST0331111,54.92,N,,N,N
Pendle Borough Council,Property Services,Premises Related Expense,Electricity,2203,E.ON NEXT ENERGY LIMITED,A0096428,05/01/2023,EST0330737,683.83,N,,N,N
Pendle Borough Council,Property Services,Premises Related Expense,Electricity,2203,E.ON NEXT ENERGY LIMITED,A0096428,19/01/2023,EST0331107,4.2,N,,N,N
Pendle Borough Council,Property Services,Premises Related Expense,Electricity,2203,E.ON NEXT ENERGY LIMITED,A0096428,19/01/2023,EST0331110,4.2,N,,N,N
Pendle Borough Council,Property Services,Premises Related Expense,Electricity,2203,E.ON NEXT ENERGY LIMITED,A0096428,19/01/2023,EST0331112,4.2,N,,N,N
Pendle Borough Council,Property Services,Premises Related Expense,Electricity,2203,E.ON NEXT ENERGY LIMITED,A0096428,05/01/2023,EST0330740,4.34,N,,N,N
Pendle Borough Council,Property Services,Premises Related Expense,Electricity,2203,E.ON NEXT ENERGY LIMITED,A0096428,19/01/2023,EST0331130,4.34,N,,N,N
Pendle Borough Council,Property Services,Premises Related Expense,Electricity,2203,E.ON NEXT ENERGY LIMITED,A0096428,19/01/2023,EST0331131,6.93,N,,N,N
Pendle Borough Council,Engineering & Special Projects,Supplies and Services,Children`s holiday activities,4716,SPORTSCOOL LTD,A0096429,05/01/2023,HED0330709,8246,N,,N,N
Pendle Borough Council,Engineering & Special Projects,Supplies and Services,Children`s holiday activities,4716,SPORTSCOOL LTD,A0096429,12/01/2023,HED0330818,8246,N,,N,N
Pendle Borough Council,Operational Services,Supplies and Services,Seminars etc All Costs,4601,TRS TRAINING LTD,A0096474,05/01/2023,OPS0330650,55,N,,N,N
Pendle Borough Council,Operational Services,Supplies and Services,Seminars etc All Costs,4601,TRS TRAINING LTD,A0096474,05/01/2023,OPS0330650,270,N,,N,N
Pendle Borough Council,Parks & Recreation Services,Transport Related Expense,Tprt : Repairs : General,3105,BTE PLANT SALES LTD,A0096481,19/01/2023,PCO0331040,236,N,,N,N
Pendle Borough Council,Parks & Recreation Services,Transport Related Expense,Tprt : Repairs : General,3105,BTE PLANT SALES LTD,A0096481,19/01/2023,PCO0331073,357.96,N,,N,N
Pendle Borough Council,Parks & Recreation Services,Premises Related Expense,Grounds : R & M : Day to Day : Routine,2101,JMB SERVICES,A0096485,12/01/2023,PCO0330859,36,N,,N,N
Pendle Borough Council,Operational Services,Transport Related Expense,Tprt : Repairs : General,3105,JCB PRICE & SON LTD,A0096491,05/01/2023,OPS0330547,150,N,,N,N
Pendle Borough Council,Engineering & Special Projects,Supplies and Services,Other Expenses,4705,THE OLD AGE PENSIONERS ASSOCIATION,A0096504,05/01/2023,HED0330763,1000,N,,N,N
Pendle Borough Council,Financial Services,Supplies and Services,Consultants Fees,4401,MBSP CONSULTANCY LTD,A0096552,05/01/2023,AAS0330765,9600,N,,N,N
Pendle Borough Council,Property Services,Premises Related Expense,Bldgs : R & M : Day To Day,2001,BEN SLATER GLAZING,A0096554,19/01/2023,EST0331118,225,N,,N,N
Pendle Borough Council,Engineering & Special Projects,Premises Related Expense,Grounds : R & M : Day to Day : Routine,2101,BM Complete Developments Ltd,A0096572,26/01/2023,HED0331207,1160,N,,N,N
Pendle Borough Council,Planning & Building Control,,Other Income : Non-VATable,9303,REDACT - PERSONAL DATA,A0096585,26/01/2023,PBC0331186,66.5,N,,N,N
Pendle Borough Council,Planning & Building Control,,Other Income : Non-VATable,9303,REDACT - PERSONAL DATA,A0096585,26/01/2023,PBC0331187,19.74,N,,N,N
Pendle Borough Council,Financial Services,Premises Related Expense,Service Charge,2702,B1 YOUR SPACE LTD,A0096763,12/01/2023,AAS0330956,4750,N,,N,N
Pendle Borough Council,Financial Services,Supplies and Services,Consultants Fees,4401,CASTLERIGG CONSULTING,A0096765,05/01/2023,AAS0330772,14200,N,,N,N
Pendle Borough Council,Information Services,Supplies and Services,Computer Charges,4509,BCN GROUP LTD,A0096766,12/01/2023,ITS0330879,226.08,N,,N,N
Pendle Borough Council,Engineering & Special Projects,Capital Costs,Capital : Payments,CD14,EA PAYMENTS,A0096791,12/01/2023,HED0330947,223,N,,N,N
Pendle Borough Council,Financial Services,Supplies and Services,Grant Funding,4737,REDACT - PERSONAL DATA,A0096806,11/01/2023,AAS0330914,475,N,,N,N
Pendle Borough Council,Financial Services,Supplies and Services,Grant Funding,4737,REDACT - PERSONAL DATA,A0096808,11/01/2023,AAS0330918,475,N,,N,N
Pendle Borough Council,Financial Services,Supplies and Services,Grant Funding,4737,REDACT - PERSONAL DATA,A0096810,11/01/2023,AAS0330919,475,N,,N,N
Pendle Borough Council,Financial Services,Supplies and Services,Grant Funding,4737,REDACT - PERSONAL DATA,A0096812,11/01/2023,AAS0330921,475,N,,N,N
Pendle Borough Council,Financial Services,Supplies and Services,Grant Funding,4737,REDACT - PERSONAL DATA,A0096819,11/01/2023,AAS0330920,475,N,,N,N
Pendle Borough Council,Financial Services,Supplies and Services,Grant Funding,4737,REDACT - PERSONAL DATA,A0096823,11/01/2023,AAS0330916,475,N,,N,N
Pendle Borough Council,Financial Services,Supplies and Services,Grant Funding,4737,REDACT - PERSONAL DATA,A0096834,11/01/2023,AAS0330915,475,N,,N,N
Pendle Borough Council,Operational Services,,Stock : Purchases,PJ01,C R SAFETY AND CONSUMABLES SUPPLIES LTD,A0096836,19/01/2023,OPS0331022,30.25,N,,N,N
Pendle Borough Council,Operational Services,,Stock : Purchases,PJ01,C R SAFETY AND CONSUMABLES SUPPLIES LTD,A0096836,12/01/2023,OPS0330848,49.85,N,,N,N
Pendle Borough Council,Operational Services,,Stock : Purchases,PJ01,C R SAFETY AND CONSUMABLES SUPPLIES LTD,A0096836,19/01/2023,OPS0331021,49.85,N,,N,N
Pendle Borough Council,Financial Services,Supplies and Services,Other Expenses,4705,POST OFFICE LTD,A0096844,19/01/2023,AAS0331149,8058.67,N,,N,N
Pendle Borough Council,Financial Services,Supplies and Services,Grant Funding,4737,REDACT - PERSONAL DATA,A0096858,11/01/2023,AAS0330922,475,N,,N,N
Pendle Borough Council,Financial Services,Supplies and Services,Grant Funding,4737,REDACT - PERSONAL DATA,A0096863,11/01/2023,AAS0330917,475,N,,N,N
Pendle Borough Council,Financial Services,Supplies and Services,Grant Funding,4737,REDACT - PERSONAL DATA,A0096866,11/01/2023,AAS0330924,475,N,,N,N
Pendle Borough Council,Financial Services,Supplies and Services,Grant Funding,4737,REDACT - PERSONAL DATA,A0096867,11/01/2023,AAS0330923,475,N,,N,N
Pendle Borough Council,Financial Services,Supplies and Services,Grant Funding,4737,REDACT - PERSONAL DATA,A0096872,11/01/2023,AAS0330925,475,N,,N,N
Pendle Borough Council,Parks & Recreation Services,Supplies and Services,EFM : Other Equipment,4003,UP TO SPEED TRAINNG,A0096883,05/01/2023,PCO0330679,1730,N,,N,N
Pendle Borough Council,Financial Services,Supplies and Services,Grant Funding,4737,REDACT - PERSONAL DATA,A0096890,11/01/2023,AAS0330926,475,N,,N,N
Pendle Borough Council,Engineering & Special Projects,Supplies and Services,Other Expenses,4705,ICENI PROJECTS,A0096892,12/01/2023,HED0330891,4485,N,,N,N
Pendle Borough Council,Engineering & Special Projects,Supplies and Services,Other Expenses,4705,ICENI PROJECTS,A0096892,12/01/2023,HED0330892,8970,N,,N,N
Pendle Borough Council,Engineering & Special Projects,Supplies and Services,Other Expenses,4705,ICENI PROJECTS,A0096892,12/01/2023,HED0330893,13455,N,,N,N
Pendle Borough Council,Financial Services,Supplies and Services,Grant Funding,4737,REDACT - PERSONAL DATA,A0096893,11/01/2023,AAS0330927,475,N,,N,N
Pendle Borough Council,Financial Services,Supplies and Services,Grant Funding,4737,REDACT - PERSONAL DATA,A0096910,11/01/2023,AAS0330930,475,N,,N,N
Pendle Borough Council,Financial Services,Supplies and Services,Grant Funding,4737,REDACT - PERSONAL DATA,A0096912,11/01/2023,AAS0330928,475,N,,N,N
Pendle Borough Council,Financial Services,Supplies and Services,Grant Funding,4737,REDACT - PERSONAL DATA,A0096916,11/01/2023,AAS0330929,475,N,,N,N
Pendle Borough Council,Engineering & Special Projects,Supplies and Services,Other Expenses,4705,NICK PARTRDIGE,A0096946,05/01/2023,HED0330702,1487.5,N,,N,N
Pendle Borough Council,Planning & Building Control,,Other Income : Non-VATable,9303,REDACT - PERSONAL DATA,A0096948,05/01/2023,PBC0330630,29.9,N,,N,N
Pendle Borough Council,Planning & Building Control,,Other Income : Non-VATable,9303,REDACT - PERSONAL DATA,A0096952,05/01/2023,PBC0330722,430.15,N,,N,N
Pendle Borough Council,Operational Services,Premises Related Expense,Bldgs : R & M : Day To Day,2001,CHAPEL END INNOVATION,A0096953,12/01/2023,OPS0330781,25,N,,N,N
Pendle Borough Council,Operational Services,Premises Related Expense,Bldgs : R & M : Day To Day,2001,CHAPEL END INNOVATION,A0096953,12/01/2023,OPS0330781,45,N,,N,N
Pendle Borough Council,Operational Services,Premises Related Expense,Bldgs : R & M : Day To Day,2001,CHAPEL END INNOVATION,A0096953,12/01/2023,OPS0330781,450,N,,N,N
Pendle Borough Council,Engineering & Special Projects,Capital Costs,Capital : Payments,CD14,UF BUILDERS,A0096954,12/01/2023,HED0330822,1800,N,,N,N
Pendle Borough Council,Financial Services,Supplies and Services,Grant Funding,4737,REDACT - PERSONAL DATA,A0096955,11/01/2023,AAS0330909,90,N,,N,N
Pendle Borough Council,Operational Services,Transport Related Expense,Tprt : Repairs : General,3105,SJP JOINERY SERVICES,A0096956,12/01/2023,OPS0330899,95,N,,N,N
Pendle Borough Council,Engineering & Special Projects,Supplies and Services,Other Expenses,4705,MARTIN ENVIRONMENTAL SOLUTIONS LTD,A0096958,19/01/2023,HED0330965,1250,N,,N,N
Pendle Borough Council,Engineering & Special Projects,Capital Costs,Capital : Payments,CD14,PENNY BENNETT LANDSCAPE ARCHITECTS,A0096959,19/01/2023,HED0331099,1380,N,,N,N
Pendle Borough Council,Financial Services,Supplies and Services,Grant Funding,4737,REDACT - PERSONAL DATA,A0096960,19/01/2023,AAS0331089,65,N,,N,N
Pendle Borough Council,Engineering & Special Projects,Supplies and Services,Other Expenses,4705,REDACT - PERSONAL DATA,A0096961,19/01/2023,HED0330980,350,N,,N,N
Pendle Borough Council,Engineering & Special Projects,Supplies and Services,Other Expenses,4705,FRESHVIEW LETTINGS,A0096962,19/01/2023,HED0331139,416.67,N,,N,N
Pendle Borough Council,Financial Services,Supplies and Services,Grant Funding,4737,REDACT - PERSONAL DATA,A0096963,19/01/2023,AAS0331090,65,N,,N,N
Pendle Borough Council,Financial Services,Supplies and Services,Grant Funding,4737,REDACT - PERSONAL DATA,A0096964,19/01/2023,AAS0331091,65,N,,N,N
Pendle Borough Council,Engineering & Special Projects,Supplies and Services,Other Expenses,4705,A STEPHENSON,A0096965,26/01/2023,HED0331162,1325,N,,N,N
Pendle Borough Council,Planning & Building Control,,Other Income : Non-VATable,9303,REDACT - PERSONAL DATA,A0096966,26/01/2023,PBC0331153,261.55,N,,N,N
Pendle Borough Council,Engineering & Special Projects,Supplies and Services,Children`s holiday activities,4716,SPRING NORTH LTD,A0096968,26/01/2023,HED0331155,2400,N,,N,N
Pendle Borough Council,Engineering & Special Projects,Supplies and Services,Other Expenses,4705,REDACT - PERSONAL DATA,A0096969,19/01/2023,HED0331145,1100,N,,N,N
Pendle Borough Council,Engineering & Special Projects,Supplies and Services,Other Expenses,4705,ELISHA HOUSE CIC,A0096970,26/01/2023,HED0331180,810.63,N,,N,N
Pendle Borough Council,Engineering & Special Projects,Supplies and Services,Consultants Fees,4401,OPTIMISED ENVIRONMENTS LIMITED,A0096971,26/01/2023,HED0331192,35384.1,N,,N,N
